Workbook

Sheet UnlockConfig
A1: ID | B1: ulockFunction | C1: ulockCondition | D1: ulockValue | E1: functionValue | F1: lockType | G1: PlayerGuideID | H1: GuidebyUI | I1: UnlockTipsID
A2: int | B2: int | C2: int | D2: int | E2: int | F2: int | G2: int | H2: int[] | I2: int
A4: 序列 | B4: 解锁功能 见解锁功能查询 | C4: 解锁方式 1=飞艇等级解锁 2=主线关卡ID解锁(MainStageNewConfig) 4=试炼之地关卡ID解锁 5=主线章节ID | D4: ulockCondition=1，代表飞艇等级 ulockCondition=2，MainStageNewConfig_ID（到达） ulockCondition=4，TowerLevelConfig_ID ulockCondition=5，ChapterConfig_ID | E4: 功能参数 | F4: 未解锁前对应入口的展现形式 1、看不见 2、置灰 | G4: 新手引导ID | H4: 进入特定界面时再判断是否触发引导 -1=任何界面都触发 | I4: 未解锁时点击的提示语言表ID {0}取ulockValue | J4: 功能 | K4: 对应Mainstage表里的文本 | M4: 新手引导ID，只填写功能解锁时会强制触发的引导。 进入某功能才进行的引导不填！ | O4: 飞艇等级段
A5: 186 | B5: 338 | C5: 2 | D5: 2 | E5: 0 | F5: 1 | G5: 0 | H5: -1 | I5: 407063 | J5: =VLOOKUP(B5,解锁功能查询!A:C,2,FALSE) -> 【入口】英雄
A6: 193 | B6: 515 | C6: 2 | D6: 2 | E6: 0 | F6: 1 | G6: 0 | H6: -1 | I6: 407063 | J6: 【引导】进1-2引导
A7: 118 | B7: 317 | C7: 2 | D7: 3 | E7: 0 | F7: 2 | G7: 0 | H7: -1 | I7: 407063 | J7: =VLOOKUP(B7,解锁功能查询!A:C,2,FALSE) -> 【选项卡】英雄详情-武具 | M7: 10
A8: 188 | B8: 510 | C8: 2 | D8: 3 | E8: 0 | F8: 1 | G8: 0 | H8: -1 | I8: 407063 | J8: 【引导】英雄界面引导
A9: 123 | B9: 324 | C9: 2 | D9: =VLOOKUP(K9,[1]主线及解锁!$E:$I,5,FALSE)+1 -> 6 | E9: 0 | F9: 1 | G9: 0 | H9: -1 | I9: 407063 | J9: =VLOOKUP(B9,解锁功能查询!A:C,2,FALSE) -> 【入口】公告 | K9: 冒险指南 | M9: 7
A10: 124 | B10: 325 | C10: 2 | D10: =VLOOKUP(K10,[1]主线及解锁!$E:$I,5,FALSE)+1 -> 6 | E10: 0 | F10: 1 | G10: 0 | H10: -1 | I10: 407063 | J10: =VLOOKUP(B10,解锁功能查询!A:C,2,FALSE) -> 【入口】邮件 | K10: 冒险指南 | M10: 7
A11: 135 | B11: 311 | C11: 2 | D11: 8 | E11: 0 | F11: 1 | G11: 0 | H11: -1 | I11: 407063 | J11: =VLOOKUP(B11,解锁功能查询!A:C,2,FALSE) -> 【入口】主界面-商店 | K11: 冒险指南 | M11: 2
A12: 179 | B12: 507 | C12: 2 | D12: =VLOOKUP(K12,[1]主线及解锁!$E:$I,5,FALSE)+1 -> 10 | E12: 0 | F12: 1 | G12: 0 | H12: -1 | I12: 407063 | J12: =VLOOKUP(B12,解锁功能查询!A:C,2,FALSE) -> 活动框架 | K12: 活动
A13: 178 | B13: 506 | C13: 2 | D13: =VLOOKUP(K13,[1]主线及解锁!$E:$I,5,FALSE)+1 -> 7 | E13: 0 | F13: 1 | G13: 0 | H13: -1 | I13: 407063 | J13: =VLOOKUP(B13,解锁功能查询!A:C,2,FALSE) -> 日常签到 | K13: 签到
A14: 187 | B14: 339 | C14: 2 | D14: =VLOOKUP(K14,[1]主线及解锁!$E:$I,5,FALSE)+1 -> 6 | E14: 0 | F14: 1 | G14: 0 | H14: -1 | I14: 407063 | J14: =VLOOKUP(B14,解锁功能查询!A:C,2,FALSE) -> 【入口】背包 | K14: 冒险指南
A15: 197 | B15: 340 | C15: 2 | D15: 4 | E15: 0 | F15: 2 | G15: 0 | H15: -1 | I15: 407063 | J15: 编队 | K15: 冒险指南
A16: 199 | B16: 521 | C16: 2 | D16: 4 | E16: 0 | F16: 2 | G16: 0 | H16: -1 | I16: 407063 | J16: 穿装备引导
A17: 125 | B17: 326 | C17: 2 | D17: =VLOOKUP(K17,[1]主线及解锁!$E:$I,5,FALSE)+1 -> 33 | E17: 0 | F17: 1 | G17: 0 | H17: -1 | I17: 407063 | J17: =VLOOKUP(B17,解锁功能查询!A:C,2,FALSE) -> 【入口】主线-三星奖励 | K17: 探险地图1 | M17: 7
A18: 130 | B18: 307 | C18: 2 | D18: =VLOOKUP(K18,[1]主线及解锁!$E:$I,5,FALSE)+1 -> 18 | E18: 0 | F18: 1 | G18: 0 | H18: -1 | I18: 407063 | J18: =VLOOKUP(B18,解锁功能查询!A:C,2,FALSE) -> 【入口】聊天UI | K18: 聊天好友 | M18: 10
A19: 117 | B19: 316 | C19: 2 | D19: =VLOOKUP(K19,[1]主线及解锁!$E:$I,5,FALSE)+1 -> 12 | E19: 0 | F19: 2 | G19: 0 | H19: -1 | I19: 407063 | J19: =VLOOKUP(B19,解锁功能查询!A:C,2,FALSE) -> 【选项卡】英雄详情-防具 | K19: 防具 | M19: 10
A20: 198 | B20: 520 | C20: 2 | D20: 33 | E20: 0 | F20: 2 | G20: 0 | H20: -1 | I20: 400027 | J20: 主线地图探索引导
A21: 200 | B21: 522 | C21: 2 | D21: 5 | E21: 0 | F21: 2 | G21: 0 | H21: -1 | I21: 407063 | J21: 编队引导
A22: 203 | B22: 525 | C22: 2 | D22: 33 | E22: 0 | F22: 1 | G22: 0 | H22: -1 | I22: 407063 | J22: 探索地图功能入口
A23: 116 | B23: 315 | C23: 2 | D23: =VLOOKUP(K23,[1]主线及解锁!$E:$I,5,FALSE)+1 -> 6 | E23: 0 | F23: 2 | G23: 0 | H23: -1 | I23: 407063 | J23: =VLOOKUP(B23,解锁功能查询!A:C,2,FALSE) -> 【选项卡】英雄详情-觉醒 | K23: 冒险指南 | M23: 7
A24: 121 | B24: 214 | C24: 2 | D24: =VLOOKUP(K24,[1]主线及解锁!$E:$I,5,FALSE)+1 -> 6 | E24: 0 | F24: 1 | G24: 0 | H24: -1 | I24: 407063 | J24: =VLOOKUP(B24,解锁功能查询!A:C,2,FALSE) -> 【入口】冒险指南1 | K24: 冒险指南 | M24: 2
A25: 134 | B25: 308 | C25: 2 | D25: =VLOOKUP(K25,[1]主线及解锁!$E:$I,5,FALSE)+1 -> 6 | E25: 0 | F25: 1 | G25: 0 | H25: -1 | I25: 407063 | J25: =VLOOKUP(B25,解锁功能查询!A:C,2,FALSE) -> 【入口】英雄招募 | K25: 冒险指南 | M25: 2
A26: 153 | B26: 501 | C26: 2 | D26: =VLOOKUP(K26,[1]主线及解锁!$E:$I,5,FALSE)+1 -> 6 | E26: 0 | F26: 1 | G26: 0 | H26: -1 | I26: 407063 | J26: =VLOOKUP(B26,解锁功能查询!A:C,2,FALSE) -> 战斗-2倍速 | K26: 冒险指南
A27: 156 | B27: 504 | C27: 2 | D27: =VLOOKUP(K27,[1]主线及解锁!$E:$I,5,FALSE)+1 -> 6 | E27: 0 | F27: 1 | G27: 0 | H27: -1 | I27: 407063 | J27: =VLOOKUP(B27,解锁功能查询!A:C,2,FALSE) -> 战斗-瞄准线按钮 | K27: 冒险指南
A28: 154 | B28: 502 | C28: 2 | D28: =VLOOKUP(K28,[1]主线及解锁!$E:$I,5,FALSE)+1 -> 6 | E28: 0 | F28: 1 | G28: 0 | H28: -1 | I28: 407063 | J28: =VLOOKUP(B28,解锁功能查询!A:C,2,FALSE) -> 战斗-自动释放终结技 | K28: 冒险指南
A29: 155 | B29: 503 | C29: 2 | D29: =VLOOKUP(K29,[1]主线及解锁!$E:$I,5,FALSE)+1 -> 6 | E29: 0 | F29: 1 | G29: 0 | H29: -1 | I29: 407063 | J29: =VLOOKUP(B29,解锁功能查询!A:C,2,FALSE) -> 战斗-自动战斗 | K29: 冒险指南
A30: 196 | B30: 519 | C30: 2 | D30: =VLOOKUP(K30,[1]主线及解锁!$E:$I,5,FALSE)+1 -> 7 | E30: 0 | F30: 1 | G30: 0 | H30: -1 | I30: 407063 | J30: 累充奖励 | K30: 签到
A31: 107 | B31: 201 | C31: 2 | D31: =VLOOKUP(K31,[1]主线及解锁!$E:$I,5,FALSE)+1 -> 9 | E31: 0 | F31: 1 | G31: 0 | H31: -1 | I31: 407063 | J31: =VLOOKUP(B31,解锁功能查询!A:C,2,FALSE) -> 【入口】冒险-物资枢纽+第1个选项卡 | K31: 物资枢纽-巨石营地1 | M31: 10
A32: 109 | B32: 203 | C32: 2 | D32: =VLOOKUP(K32,[1]主线及解锁!$E:$I,5,FALSE)+1 -> 9 | E32: 0 | F32: 1 | G32: 0 | H32: -1 | I32: 407063 | J32: =VLOOKUP(B32,解锁功能查询!A:C,2,FALSE) -> 物资枢纽-巨石营地（英雄经验） | K32: 物资枢纽-巨石营地1 | M32: 13
A33: 111 | B33: 205 | C33: 2 | D33: =VLOOKUP(K33,[1]主线及解锁!$E:$I,5,FALSE)+1 -> 16 | E33: 0 | F33: 1 | G33: 0 | H33: -1 | I33: 407063 | J33: =VLOOKUP(B33,解锁功能查询!A:C,2,FALSE) -> 物资枢纽-深渊猎场（防具材料） | K33: 物资枢纽-深渊猎场1 | M33: 10
A34: 201 | B34: 523 | C34: 2 | D34: 7 | E34: 0 | F34: 2 | G34: 0 | H34: -1 | I34: 407063 | J34: 主线箱子引导
A35: 168 | B35: 331 | C35: 2 | D35: =VLOOKUP(K35,[1]主线及解锁!$E:$I,5,FALSE)+1 -> 29 | E35: 0 | F35: 1 | G35: 0 | H35: -1 | I35: 407063 | J35: =VLOOKUP(B35,解锁功能查询!A:C,2,FALSE) -> 【入口】战令 | K35: 深渊通行证
A36: 177 | B36: 239 | C36: 2 | D36: =VLOOKUP(K36,[1]主线及解锁!$E:$I,5,FALSE)+1 -> 43 | E36: 0 | F36: 1 | G36: 0 | H36: -1 | I36: 407063 | J36: =VLOOKUP(B36,解锁功能查询!A:C,2,FALSE) -> 契约按钮 | K36: 契约
A37: 108 | B37: 202 | C37: 2 | D37: =VLOOKUP(K37,[1]主线及解锁!$E:$I,5,FALSE)+1 -> 26 | E37: 0 | F37: 1 | G37: 0 | H37: -1 | I37: 407063 | J37: =VLOOKUP(B37,解锁功能查询!A:C,2,FALSE) -> 物资枢纽-闹鬼金矿（金币） | K37: 物资枢纽-闹鬼金矿1 | M37: 18 | N37: 如果不缺的话，这个延后
A38: 202 | B38: 524 | C38: 2 | D38: 10 | E38: 0 | F38: 2 | G38: 0 | H38: -1 | I38: 407063 | J38: 特殊关卡引导
A39: 127 | B39: 328 | C39: 2 | D39: =VLOOKUP(K39,[1]主线及解锁!$E:$I,5,FALSE)+1 -> 6 | E39: 0 | F39: 1 | G39: 0 | H39: -1 | I39: 407063 | J39: =VLOOKUP(B39,解锁功能查询!A:C,2,FALSE) -> 【入口】图鉴 | K39: 冒险指南 | M39: 7
A40: 191 | B40: 513 | C40: 2 | D40: =VLOOKUP(K40,[1]主线及解锁!$E:$I,5,FALSE)+1 -> 12 | E40: 0 | F40: 1 | G40: 0 | H40: -1 | I40: 407063 | J40: 【引导】防具强化引导 | K40: 防具
A41: 1001 | B41: 4 | C41: 2 | D41: =VLOOKUP(K41,[1]主线及解锁!$E:$I,5,FALSE)+1 -> 11 | E41: 20 | F41: 1 | G41: 0 | H41: -1 | I41: 407063 | J41: =VLOOKUP(B41,解锁功能查询!A:C,2,FALSE) -> 英雄等级上限提升 | K41: =CONCATENATE("英雄等级上限Lv.",E41-10," → Lv.",E41) -> 英雄等级上限Lv.10 → Lv.20
A42: 1020 | B42: 518 | C42: 2 | D42: =VLOOKUP(K42,[1]主线及解锁!$E:$I,5,FALSE)+1 -> 23 | E42: 0 | F42: 1 | G42: 0 | H42: -1 | I42: 407063 | J42: 连续战斗按钮的解锁 | K42: 连续战斗
A43: 129 | B43: 306 | C43: 2 | D43: =VLOOKUP(K43,[1]主线及解锁!$E:$I,5,FALSE)+1 -> 18 | E43: 0 | F43: 1 | G43: 0 | H43: -1 | I43: 407063 | J43: =VLOOKUP(B43,解锁功能查询!A:C,2,FALSE) -> 【入口】好友 | K43: 聊天好友 | M43: 5
A44: 184 | B44: 241 | C44: 2 | D44: =VLOOKUP(K44,[1]主线及解锁!$E:$I,5,FALSE)+1 -> 141 | E44: 0 | F44: 2 | G44: 0 | H44: -1 | I44: 407063 | J44: =VLOOKUP(B44,解锁功能查询!A:C,2,FALSE) -> 深渊道馆入口按钮 | K44: 深渊道馆
A45: 169 | B45: 332 | C45: 1 | D45: 68 | E45: 0 | F45: 1 | G45: 0 | H45: -1 | I45: 400027 | J45: =VLOOKUP(B45,解锁功能查询!A:C,2,FALSE) -> 商店-小镇杂货 | K45: 钻石商店 | M45: 2
A46: 180 | B46: 508 | C46: 2 | D46: =VLOOKUP(K46,[1]主线及解锁!$E:$I,5,FALSE)+1 -> 136 | E46: 0 | F46: 1 | G46: 0 | H46: -1 | I46: 407063 | J46: =VLOOKUP(B46,解锁功能查询!A:C,2,FALSE) -> 公会 | K46: 小队系统
A47: 122 | B47: 215 | C47: 2 | D47: =VLOOKUP(K47,[1]主线及解锁!$E:$I,5,FALSE)+1 -> 61 | E47: 0 | F47: 1 | G47: 0 | H47: -1 | I47: 407063 | J47: =VLOOKUP(B47,解锁功能查询!A:C,2,FALSE) -> 【入口】日常周常 | K47: 日常任务 | M47: 2
A48: 142 | B48: 222 | C48: 2 | D48: =VLOOKUP(K48,[1]主线及解锁!$E:$I,5,FALSE)+1 -> 46 | E48: 0 | F48: 2 | G48: 0 | H48: -1 | I48: 407063 | J48: =VLOOKUP(B48,解锁功能查询!A:C,2,FALSE) -> 试炼之地-时光试炼1 | K48: 试炼之地-时光试炼1
A49: 136 | B49: 330 | C49: 2 | D49: =VLOOKUP(K49,[1]主线及解锁!$E:$I,5,FALSE)+1 -> 46 | E49: 0 | F49: 1 | G49: 0 | H49: -1 | I49: 407063 | J49: =VLOOKUP(B49,解锁功能查询!A:C,2,FALSE) -> 【入口】冒险-试炼之地 | K49: 试炼之地-时光试炼1
A50: 915 | B50: 336 | C50: 2 | D50: =VLOOKUP(K50,[1]主线及解锁!$E:$I,5,FALSE)+1 -> 46 | E50: 0 | F50: 2 | G50: 0 | H50: -1 | I50: 407063 | J50: =VLOOKUP(B50,解锁功能查询!A:C,2,FALSE) -> 【入口】铁匠铺-时光之契 | K50: 试炼之地-时光试炼1
A51: 119 | B51: 321 | C51: 2 | D51: =VLOOKUP(K51,[1]主线及解锁!$E:$I,5,FALSE)+1 -> 46 | E51: 0 | F51: 1 | G51: 0 | H51: -1 | I51: 407063 | J51: =VLOOKUP(B51,解锁功能查询!A:C,2,FALSE) -> 【入口】编队界面-神器 | K51: 试炼之地-时光试炼1 | M51: 30 | N51: 神器作为到30级的养成。
A52: 115 | B52: 303 | C52: 2 | D52: =VLOOKUP(K52,[1]主线及解锁!$E:$I,5,FALSE)+1 -> 46 | E52: 0 | F52: 1 | G52: 0 | H52: -1 | I52: 407063 | J52: =VLOOKUP(B52,解锁功能查询!A:C,2,FALSE) -> 【入口】主界面-铁匠铺 | K52: 试炼之地-时光试炼1 | M52: 20
A53: 204 | B53: 526 | C53: 2 | D53: 15 | E53: 0 | F53: 1 | G53: 0 | H53: -1 | I53: 407063 | J53: 使用背包道具引导
A54: 113 | B54: 212 | C54: 2 | D54: =VLOOKUP(K54,[1]主线及解锁!$E:$I,5,FALSE)+1 -> 58 | E54: 0 | F54: 1 | G54: 0 | H54: -1 | I54: 407063 | J54: =VLOOKUP(B54,解锁功能查询!A:C,2,FALSE) -> BURP酒馆-悬赏任务 | K54: 悬赏任务 | M54: 15
A55: 114 | B55: 301 | C55: 2 | D55: =VLOOKUP(K55,[1]主线及解锁!$E:$I,5,FALSE)+1 -> 58 | E55: 0 | F55: 1 | G55: 0 | H55: -1 | I55: 407063 | J55: =VLOOKUP(B55,解锁功能查询!A:C,2,FALSE) -> 主界面-BURP酒馆入口 | K55: 悬赏任务 | M55: 999
A56: 175 | B56: 334 | C56: 1 | D56: 9999 | E56: 0 | F56: 1 | G56: 0 | H56: -1 | I56: 400027 | J56: =VLOOKUP(B56,解锁功能查询!A:C,2,FALSE) -> 冲刺活动按钮
A57: 137 | B57: 217 | C57: 2 | D57: =VLOOKUP(K57,[1]主线及解锁!$E:$I,5,FALSE)+1 -> 66 | E57: 0 | F57: 2 | G57: 0 | H57: -1 | I57: 407063 | J57: =VLOOKUP(B57,解锁功能查询!A:C,2,FALSE) -> 试炼之地-流明试炼1（主线） | K57: 试炼之地-流明试炼
A58: 131 | B58: 319 | C58: 2 | D58: =VLOOKUP(K58,[1]主线及解锁!$E:$I,5,FALSE)+1 -> 46 | E58: 0 | F58: 1 | G58: 0 | H58: -1 | I58: 407063 | J58: =VLOOKUP(B58,解锁功能查询!A:C,2,FALSE) -> 【入口】预设编队 | K58: 试炼之地-时光试炼1 | M58: 15
A59: 120 | B59: 213 | C59: 2 | D59: =VLOOKUP(K59,[1]主线及解锁!$E:$I,5,FALSE)+1 -> 36 | E59: 0 | F59: 1 | G59: 0 | H59: -1 | I59: 407063 | J59: =VLOOKUP(B59,解锁功能查询!A:C,2,FALSE) -> 【入口】冒险-模拟训练选 | K59: 模拟训练-难度Lv.35 | M59: 20
A60: 170 | B60: 333 | C60: 2 | D60: =VLOOKUP(K60,[1]主线及解锁!$E:$I,5,FALSE)+1 ->  | E60: 0 | F60: 1 | G60: 0 | H60: -1 | I60: 407063 | J60: =VLOOKUP(B60,解锁功能查询!A:C,2,FALSE) -> 商店-模拟训练 | K60: 模拟商店
A61: 916 | B61: 337 | C61: 2 | D61: =VLOOKUP(K61,[1]主线及解锁!$E:$I,5,FALSE)+1 -> 206 | E61: 0 | F61: 2 | G61: 0 | H61: -1 | I61: 407063 | J61: =VLOOKUP(B61,解锁功能查询!A:C,2,FALSE) -> 【入口】铁匠铺-打造武器 | K61: 武器打造
A62: 195 | B62: 517 | C62: 2 | D62: =VLOOKUP(K62,[1]主线及解锁!$E:$I,5,FALSE)+1 -> 206 | E62: 0 | F62: 1 | G62: 0 | H62: -1 | I62: 407063 | J62: 【引导】分解装备 | K62: 武器打造
A63: 171 | B63: 234 | C63: 2 | D63: =VLOOKUP(K63,[1]主线及解锁!$E:$I,5,FALSE)+1 -> 126 | E63: 0 | F63: 1 | G63: 0 | H63: -1 | I63: 407063 | J63: =VLOOKUP(B63,解锁功能查询!A:C,2,FALSE) -> 物资枢纽-残响1 | K63: 残响遗迹1
A64: 167 | B64: 233 | C64: 2 | D64: =VLOOKUP(K64,[1]主线及解锁!$E:$I,5,FALSE)+1 -> 126 | E64: 0 | F64: 2 | G64: 0 | H64: -1 | I64: 407063 | J64: =VLOOKUP(B64,解锁功能查询!A:C,2,FALSE) -> 物资枢纽-第2个选项卡（遗物） | K64: 残响遗迹1
A65: 181 | B65: 335 | C65: 2 | D65: 128 | E65: 0 | F65: 2 | G65: 0 | H65: -1 | I65: 407063 | J65: =VLOOKUP(B65,解锁功能查询!A:C,2,FALSE) -> 残响的强化按钮 | K65: 残响遗迹1
A66: 143 | B66: 223 | C66: 2 | D66: =VLOOKUP(K66,[1]主线及解锁!$E:$I,5,FALSE)+1 -> 81 | E66: 0 | F66: 2 | G66: 0 | H66: -1 | I66: 407063 | J66: =VLOOKUP(B66,解锁功能查询!A:C,2,FALSE) -> 试炼之地-时光试炼2 | K66: 试炼之地-时光试炼2
A67: 101 | B67: 2 | C67: 1 | D67: 9999 | E67: 1 | F67: 1 | G67: 0 | H67: -1 | I67: 400027 | J67: =VLOOKUP(B67,解锁功能查询!A:C,2,FALSE) -> 勋章栏位解锁 | K67: 勋章 | M67: 35
A68: 102 | B68: 2 | C68: 1 | D68: 9999 | E68: 2 | F68: 1 | G68: 0 | H68: -1 | I68: 400027 | J68: =VLOOKUP(B68,解锁功能查询!A:C,2,FALSE) -> 勋章栏位解锁 | K68: 勋章 | M68: 35
A69: 103 | B69: 2 | C69: 1 | D69: 9999 | E69: 3 | F69: 1 | G69: 0 | H69: -1 | I69: 400027 | J69: =VLOOKUP(B69,解锁功能查询!A:C,2,FALSE) -> 勋章栏位解锁 | K69: 勋章 | M69: 35
A70: 104 | B70: 2 | C70: 1 | D70: 9999 | E70: 4 | F70: 1 | G70: 0 | H70: -1 | I70: 400027 | J70: =VLOOKUP(B70,解锁功能查询!A:C,2,FALSE) -> 勋章栏位解锁 | K70: 勋章 | M70: 35
A71: 182 | B71: 509 | C71: 2 | D71: 31 | E71: 0 | F71: 1 | G71: 0 | H71: -1 | I71: 407063 | J71: 关闭新手特殊指引
A72: 1002 | B72: 4 | C72: 2 | D72: =VLOOKUP(K72,[1]主线及解锁!$E:$I,5,FALSE)+1 -> 21 | E72: 30 | F72: 1 | G72: 0 | H72: -1 | I72: 407063 | J72: =VLOOKUP(B72,解锁功能查询!A:C,2,FALSE) -> 英雄等级上限提升 | K72: =CONCATENATE("英雄等级上限Lv.",E72-10," → Lv.",E72) -> 英雄等级上限Lv.20 → Lv.30
A73: 133 | B73: 309 | C73: 2 | D73: =VLOOKUP(K73,[1]主线及解锁!$E:$I,5,FALSE)+1 -> 541 | E73: 0 | F73: 1 | G73: 0 | H73: -1 | I73: 407063 | J73: =VLOOKUP(B73,解锁功能查询!A:C,2,FALSE) -> 【入口】冒险-精英共斗 | K73: 组队共斗 | M73: 2
A74: 166 | B74: 505 | C74: 1 | D74: 35 | E74: 0 | F74: 1 | G74: 0 | H74: -1 | I74: 400027 | J74: =VLOOKUP(B74,解锁功能查询!A:C,2,FALSE) -> 专属遗物信息解锁。解锁前，编队界面选神器后，英雄不显示专属遗物相关信息，神器上不显示强化效果信息
A75: 172 | B75: 235 | C75: 2 | D75: =VLOOKUP(K75,[1]主线及解锁!$E:$I,5,FALSE)+1 -> 241 | E75: 0 | F75: 1 | G75: 0 | H75: -1 | I75: 407063 | J75: =VLOOKUP(B75,解锁功能查询!A:C,2,FALSE) -> 物资枢纽-残响2 | K75: 残响遗迹2
A76: 144 | B76: 224 | C76: 2 | D76: =VLOOKUP(K76,[1]主线及解锁!$E:$I,5,FALSE)+1 -> 121 | E76: 0 | F76: 2 | G76: 0 | H76: -1 | I76: 407063 | J76: =VLOOKUP(B76,解锁功能查询!A:C,2,FALSE) -> 试炼之地-时光试炼3 | K76: 试炼之地-时光试炼3
A77: 173 | B77: 236 | C77: 2 | D77: =VLOOKUP(K77,[1]主线及解锁!$E:$I,5,FALSE)+1 -> 436 | E77: 0 | F77: 1 | G77: 0 | H77: -1 | I77: 407063 | J77: =VLOOKUP(B77,解锁功能查询!A:C,2,FALSE) -> 物资枢纽-残响3 | K77: 残响遗迹3
A78: 183 | B78: 240 | C78: 2 | D78: =VLOOKUP(K78,[1]主线及解锁!$E:$I,5,FALSE)+1 -> 1981 | E78: 0 | F78: 2 | G78: 0 | H78: -1 | I78: 407063 | J78: 赛季roguelike | K78: 模拟训练-赛季模式
A79: 1003 | B79: 4 | C79: 2 | D79: =VLOOKUP(K79,[1]主线及解锁!$E:$I,5,FALSE)+1 -> 31 | E79: 40 | F79: 1 | G79: 0 | H79: -1 | I79: 407063 | J79: =VLOOKUP(B79,解锁功能查询!A:C,2,FALSE) -> 英雄等级上限提升 | K79: =CONCATENATE("英雄等级上限Lv.",E79-10," → Lv.",E79) -> 英雄等级上限Lv.30 → Lv.40
A80: 145 | B80: 225 | C80: 2 | D80: =VLOOKUP(K80,[1]主线及解锁!$E:$I,5,FALSE)+1 -> 166 | E80: 0 | F80: 2 | G80: 0 | H80: -1 | I80: 407063 | J80: =VLOOKUP(B80,解锁功能查询!A:C,2,FALSE) -> 试炼之地-时光试炼4 | K80: 试炼之地-时光试炼4
A81: 151 | B81: 231 | C81: 2 | D81: =VLOOKUP(K81,[1]主线及解锁!$E:$I,5,FALSE)+1 -> 941 | E81: 0 | F81: 1 | G81: 0 | H81: -1 | I81: 407063 | J81: =VLOOKUP(B81,解锁功能查询!A:C,2,FALSE) -> 藏宝图-单人行动选项卡 | K81: 藏宝图-单人
A82: 112 | B82: 209 | C82: 2 | D82: =VLOOKUP(K82,[1]主线及解锁!$E:$I,5,FALSE)+1 -> 941 | E82: 0 | F82: 1 | G82: 0 | H82: -1 | I82: 407063 | J82: =VLOOKUP(B82,解锁功能查询!A:C,2,FALSE) -> 【入口】冒险-藏宝图 | K82: 藏宝图-单人 | M82: 40
A83: 185 | B83: 242 | C83: 2 | D83: =VLOOKUP(K83,[1]主线及解锁!$E:$I,5,FALSE)+1 -> 941 | E83: 0 | F83: 2 | G83: 0 | H83: -1 | I83: 407063 | J83: =VLOOKUP(B83,解锁功能查询!A:C,2,FALSE) -> 藏宝图活动入口 | K83: 藏宝图-单人
A84: 174 | B84: 237 | C84: 2 | D84: =VLOOKUP(K84,[1]主线及解锁!$E:$I,5,FALSE)+1 -> 641 | E84: 0 | F84: 1 | G84: 0 | H84: -1 | I84: 407063 | J84: =VLOOKUP(B84,解锁功能查询!A:C,2,FALSE) -> 物资枢纽-残响4 | K84: 残响遗迹4
A85: 148 | B85: 228 | C85: 2 | D85: =VLOOKUP(K85,[1]主线及解锁!$E:$I,5,FALSE)+1 -> 1961 | E85: 0 | F85: 2 | G85: 0 | H85: -1 | I85: 407063 | J85: =VLOOKUP(B85,解锁功能查询!A:C,2,FALSE) -> 试炼之地-轮回试炼1 | K85: 试炼之地-轮回试炼 | N85: 轮回试炼2后解锁。跨度极大。
A86: 149 | B86: 229 | C86: 2 | D86: =VLOOKUP(K86,[1]主线及解锁!$E:$I,5,FALSE)+1 -> 1961 | E86: 0 | F86: 2 | G86: 0 | H86: -1 | I86: 407063 | J86: =VLOOKUP(B86,解锁功能查询!A:C,2,FALSE) -> 试炼之地-轮回试炼2 | K86: 试炼之地-轮回试炼
A87: 150 | B87: 230 | C87: 2 | D87: =VLOOKUP(K87,[1]主线及解锁!$E:$I,5,FALSE)+1 -> 1961 | E87: 0 | F87: 2 | G87: 0 | H87: -1 | I87: 407063 | J87: =VLOOKUP(B87,解锁功能查询!A:C,2,FALSE) -> 试炼之地-轮回试炼3 | K87: 试炼之地-轮回试炼
A88: 146 | B88: 226 | C88: 2 | D88: =VLOOKUP(K88,[1]主线及解锁!$E:$I,5,FALSE)+1 -> 216 | E88: 0 | F88: 2 | G88: 0 | H88: -1 | I88: 407063 | J88: =VLOOKUP(B88,解锁功能查询!A:C,2,FALSE) -> 试炼之地-时光试炼5 | K88: 试炼之地-时光试炼5
A89: 152 | B89: 232 | C89: 2 | D89: =VLOOKUP(K89,[1]主线及解锁!$E:$I,5,FALSE)+1 -> 1141 | E89: 0 | F89: 1 | G89: 0 | H89: -1 | I89: 407063 | J89: =VLOOKUP(B89,解锁功能查询!A:C,2,FALSE) -> 藏宝图-我是队长&加入行动选项卡 | K89: 藏宝图-组队
A90: 147 | B90: 227 | C90: 2 | D90: =VLOOKUP(K90,[1]主线及解锁!$E:$I,5,FALSE)+1 -> 296 | E90: 0 | F90: 2 | G90: 0 | H90: -1 | I90: 407063 | J90: =VLOOKUP(B90,解锁功能查询!A:C,2,FALSE) -> 试炼之地-时光试炼6 | K90: 试炼之地-时光试炼6
A91: 176 | B91: 238 | C91: 2 | D91: 9999 | E91: 0 | F91: 1 | G91: 0 | H91: -1 | I91: 407063 | J91: =VLOOKUP(B91,解锁功能查询!A:C,2,FALSE) -> 冒险指南2 | K91: 冒险指南-进阶
A92: 1004 | B92: 4 | C92: 2 | D92: =VLOOKUP(K92,[1]主线及解锁!$E:$I,5,FALSE)+1 -> 41 | E92: 50 | F92: 1 | G92: 0 | H92: -1 | I92: 407063 | J92: =VLOOKUP(B92,解锁功能查询!A:C,2,FALSE) -> 英雄等级上限提升 | K92: =CONCATENATE("英雄等级上限Lv.",E92-10," → Lv.",E92) -> 英雄等级上限Lv.40 → Lv.50
A93: 1005 | B93: 4 | C93: 2 | D93: =VLOOKUP(K93,[1]主线及解锁!$E:$I,5,FALSE)+1 -> 51 | E93: 60 | F93: 1 | G93: 0 | H93: -1 | I93: 407063 | J93: =VLOOKUP(B93,解锁功能查询!A:C,2,FALSE) -> 英雄等级上限提升 | K93: =CONCATENATE("英雄等级上限Lv.",E93-10," → Lv.",E93) -> 英雄等级上限Lv.50 → Lv.60
A94: 138 | B94: 218 | C94: 2 | D94: =VLOOKUP(K94,[1]主线及解锁!$E:$I,5,FALSE)+1 -> 181 | E94: 0 | F94: 2 | G94: 0 | H94: -1 | I94: 407063 | J94: =VLOOKUP(B94,解锁功能查询!A:C,2,FALSE) -> 试炼之地-流明试炼2（火） | K94: 试炼之地-流明试炼-属性
A95: 139 | B95: 219 | C95: 2 | D95: =VLOOKUP(K95,[1]主线及解锁!$E:$I,5,FALSE)+1 -> 181 | E95: 0 | F95: 2 | G95: 0 | H95: -1 | I95: 407063 | J95: =VLOOKUP(B95,解锁功能查询!A:C,2,FALSE) -> 试炼之地-流明试炼3（冰） | K95: 试炼之地-流明试炼-属性
A96: 140 | B96: 220 | C96: 2 | D96: =VLOOKUP(K96,[1]主线及解锁!$E:$I,5,FALSE)+1 -> 181 | E96: 0 | F96: 2 | G96: 0 | H96: -1 | I96: 407063 | J96: =VLOOKUP(B96,解锁功能查询!A:C,2,FALSE) -> 试炼之地-流明试炼4（雷） | K96: 试炼之地-流明试炼-属性
A97: 1006 | B97: 4 | C97: 2 | D97: =VLOOKUP(K97,[1]主线及解锁!$E:$I,5,FALSE)+1 -> 71 | E97: 70 | F97: 1 | G97: 0 | H97: -1 | I97: 407063 | J97: =VLOOKUP(B97,解锁功能查询!A:C,2,FALSE) -> 英雄等级上限提升 | K97: =CONCATENATE("英雄等级上限Lv.",E97-10," → Lv.",E97) -> 英雄等级上限Lv.60 → Lv.70
A98: 1007 | B98: 4 | C98: 2 | D98: =VLOOKUP(K98,[1]主线及解锁!$E:$I,5,FALSE)+1 -> 91 | E98: 80 | F98: 1 | G98: 0 | H98: -1 | I98: 407063 | J98: =VLOOKUP(B98,解锁功能查询!A:C,2,FALSE) -> 英雄等级上限提升 | K98: 英雄等级上限Lv.70 → Lv.80
A99: 1008 | B99: 4 | C99: 2 | D99: =VLOOKUP(K99,[1]主线及解锁!$E:$I,5,FALSE)+1 -> 111 | E99: 90 | F99: 1 | G99: 0 | H99: -1 | I99: 407063 | J99: =VLOOKUP(B99,解锁功能查询!A:C,2,FALSE) -> 英雄等级上限提升 | K99: 英雄等级上限Lv.80 → Lv.90
A100: 1009 | B100: 4 | C100: 2 | D100: =VLOOKUP(K100,[1]主线及解锁!$E:$I,5,FALSE)+1 -> 131 | E100: 100 | F100: 1 | G100: 0 | H100: -1 | I100: 407063 | J100: =VLOOKUP(B100,解锁功能查询!A:C,2,FALSE) -> 英雄等级上限提升 | K100: 英雄等级上限Lv.90 → Lv.100
A101: 1010 | B101: 4 | C101: 2 | D101: =VLOOKUP(K101,[1]主线及解锁!$E:$I,5,FALSE)+1 -> 151 | E101: 110 | F101: 1 | G101: 0 | H101: -1 | I101: 407063 | J101: =VLOOKUP(B101,解锁功能查询!A:C,2,FALSE) -> 英雄等级上限提升 | K101: 英雄等级上限Lv.100 → Lv.110
A102: 1011 | B102: 4 | C102: 2 | D102: =VLOOKUP(K102,[1]主线及解锁!$E:$I,5,FALSE)+1 -> 171 | E102: 120 | F102: 1 | G102: 0 | H102: -1 | I102: 407063 | J102: =VLOOKUP(B102,解锁功能查询!A:C,2,FALSE) -> 英雄等级上限提升 | K102: 英雄等级上限Lv.110 → Lv.120
A103: 1012 | B103: 4 | C103: 2 | D103: =VLOOKUP(K103,[1]主线及解锁!$E:$I,5,FALSE)+1 -> 191 | E103: 130 | F103: 1 | G103: 0 | H103: -1 | I103: 407063 | J103: =VLOOKUP(B103,解锁功能查询!A:C,2,FALSE) -> 英雄等级上限提升 | K103: 英雄等级上限Lv.120 → Lv.130
A104: 1013 | B104: 4 | C104: 2 | D104: =VLOOKUP(K104,[1]主线及解锁!$E:$I,5,FALSE)+1 -> 211 | E104: 140 | F104: 1 | G104: 0 | H104: -1 | I104: 407063 | J104: =VLOOKUP(B104,解锁功能查询!A:C,2,FALSE) -> 英雄等级上限提升 | K104: 英雄等级上限Lv.130 → Lv.140
A105: 1014 | B105: 4 | C105: 2 | D105: =VLOOKUP(K105,[1]主线及解锁!$E:$I,5,FALSE)+1 -> 231 | E105: 150 | F105: 1 | G105: 0 | H105: -1 | I105: 407063 | J105: =VLOOKUP(B105,解锁功能查询!A:C,2,FALSE) -> 英雄等级上限提升 | K105: 英雄等级上限Lv.140 → Lv.150
A106: 1015 | B106: 4 | C106: 2 | D106: =VLOOKUP(K106,[1]主线及解锁!$E:$I,5,FALSE)+1 -> 251 | E106: 160 | F106: 1 | G106: 0 | H106: -1 | I106: 407063 | J106: =VLOOKUP(B106,解锁功能查询!A:C,2,FALSE) -> 英雄等级上限提升 | K106: 英雄等级上限Lv.150 → Lv.160
A107: 1016 | B107: 4 | C107: 2 | D107: =VLOOKUP(K107,[1]主线及解锁!$E:$I,5,FALSE)+1 -> 271 | E107: 170 | F107: 1 | G107: 0 | H107: -1 | I107: 407063 | J107: =VLOOKUP(B107,解锁功能查询!A:C,2,FALSE) -> 英雄等级上限提升 | K107: 英雄等级上限Lv.160 → Lv.170
A108: 1017 | B108: 4 | C108: 2 | D108: =VLOOKUP(K108,[1]主线及解锁!$E:$I,5,FALSE)+1 -> 291 | E108: 180 | F108: 1 | G108: 0 | H108: -1 | I108: 407063 | J108: =VLOOKUP(B108,解锁功能查询!A:C,2,FALSE) -> 英雄等级上限提升 | K108: 英雄等级上限Lv.170 → Lv.180
A109: 1018 | B109: 4 | C109: 2 | D109: =VLOOKUP(K109,[1]主线及解锁!$E:$I,5,FALSE)+1 -> 311 | E109: 190 | F109: 1 | G109: 0 | H109: -1 | I109: 407063 | J109: =VLOOKUP(B109,解锁功能查询!A:C,2,FALSE) -> 英雄等级上限提升 | K109: 英雄等级上限Lv.180 → Lv.190
A110: 1019 | B110: 4 | C110: 2 | D110: =VLOOKUP(K110,[1]主线及解锁!$E:$I,5,FALSE)+1 -> 331 | E110: 200 | F110: 1 | G110: 0 | H110: -1 | I110: 407063 | J110: =VLOOKUP(B110,解锁功能查询!A:C,2,FALSE) -> 英雄等级上限提升 | K110: 英雄等级上限Lv.190 → Lv.200
A111: 128 | B111: 329 | C111: 1 | D111: 999 | E111: 0 | F111: 1 | G111: 0 | H111: -1 | I111: 400027 | J111: =VLOOKUP(B111,解锁功能查询!A:C,2,FALSE) -> 【选项卡】铁匠铺-合成 | M111: 7
A112: 132 | B112: 216 | C112: 1 | D112: 9999 | E112: 0 | F112: 1 | G112: 0 | H112: -1 | I112: 400027 | J112: =VLOOKUP(B112,解锁功能查询!A:C,2,FALSE) -> 成就界面 | M112: 2
A113: 190 | B113: 512 | C113: 2 | D113: 9999 | E113: 0 | F113: 1 | G113: 0 | H113: -1 | I113: 407063 | J113: =VLOOKUP(B113,解锁功能查询!A:C,2,FALSE) -> 【引导】切换章节引导
A114: 192 | B114: 514 | C114: 2 | D114: 9999 | E114: 0 | F114: 1 | G114: 0 | H114: -1 | I114: 407063 | J114: =VLOOKUP(B114,解锁功能查询!A:C,2,FALSE) -> 【引导】进通道2引导
A115: 194 | B115: 516 | C115: 2 | D115: 9999 | E115: 0 | F115: 1 | G115: 0 | H115: -1 | I115: 407063 | J115: =VLOOKUP(B115,解锁功能查询!A:C,2,FALSE) -> 【引导】多波怪战斗引导
A116: 189 | B116: 511 | C116: 1 | D116: 9999 | E116: 0 | F116: 1 | G116: 0 | H116: -1 | I116: 400027 | J116: =VLOOKUP(B116,解锁功能查询!A:C,2,FALSE) -> 【引导】累计星星引导
I117: 407063
A118: 205 | B118: 527 | C118: 2 | D118: =VLOOKUP(K118,[1]主线及解锁!$E:$I,5,FALSE)+1 -> 126 | E118: 0 | F118: 1 | G118: 0 | H118: -1 | I118: 407063 | J118: =VLOOKUP(B118,解锁功能查询!A:C,2,FALSE) -> 【引导】英雄和队伍评分入口 | K118: 残响遗迹1
I119: 407063
A120: 1021 | B120: 4 | C120: 2 | D120: =VLOOKUP(K120,[1]主线及解锁!$E:$I,5,FALSE)+1 -> 351 | E120: 210 | F120: 1 | G120: 0 | H120: -1 | I120: 407063 | J120: =VLOOKUP(B120,解锁功能查询!A:C,2,FALSE) -> 英雄等级上限提升 | K120: =CONCATENATE("英雄等级上限Lv.",E120-10," → Lv.",E120) -> 英雄等级上限Lv.200 → Lv.210
A121: 1022 | B121: 4 | C121: 2 | D121: =VLOOKUP(K121,[1]主线及解锁!$E:$I,5,FALSE)+1 -> 371 | E121: 220 | F121: 1 | G121: 0 | H121: -1 | I121: 407063 | J121: =VLOOKUP(B121,解锁功能查询!A:C,2,FALSE) -> 英雄等级上限提升 | K121: =CONCATENATE("英雄等级上限Lv.",E121-10," → Lv.",E121) -> 英雄等级上限Lv.210 → Lv.220
A122: 1023 | B122: 4 | C122: 2 | D122: =VLOOKUP(K122,[1]主线及解锁!$E:$I,5,FALSE)+1 -> 391 | E122: 230 | F122: 1 | G122: 0 | H122: -1 | I122: 407063 | J122: =VLOOKUP(B122,解锁功能查询!A:C,2,FALSE) -> 英雄等级上限提升 | K122: =CONCATENATE("英雄等级上限Lv.",E122-10," → Lv.",E122) -> 英雄等级上限Lv.220 → Lv.230
A123: 1024 | B123: 4 | C123: 2 | D123: =VLOOKUP(K123,[1]主线及解锁!$E:$I,5,FALSE)+1 -> 411 | E123: 240 | F123: 1 | G123: 0 | H123: -1 | I123: 407063 | J123: =VLOOKUP(B123,解锁功能查询!A:C,2,FALSE) -> 英雄等级上限提升 | K123: 英雄等级上限Lv.230 → Lv.240
A124: 1025 | B124: 4 | C124: 2 | D124: =VLOOKUP(K124,[1]主线及解锁!$E:$I,5,FALSE)+1 -> 431 | E124: 250 | F124: 1 | G124: 0 | H124: -1 | I124: 407063 | J124: =VLOOKUP(B124,解锁功能查询!A:C,2,FALSE) -> 英雄等级上限提升 | K124: 英雄等级上限Lv.240 → Lv.250
A125: 1026 | B125: 4 | C125: 2 | D125: =VLOOKUP(K125,[1]主线及解锁!$E:$I,5,FALSE)+1 -> 451 | E125: 260 | F125: 1 | G125: 0 | H125: -1 | I125: 407063 | J125: =VLOOKUP(B125,解锁功能查询!A:C,2,FALSE) -> 英雄等级上限提升 | K125: 英雄等级上限Lv.250 → Lv.260
A126: 1027 | B126: 4 | C126: 2 | D126: =VLOOKUP(K126,[1]主线及解锁!$E:$I,5,FALSE)+1 -> 471 | E126: 270 | F126: 1 | G126: 0 | H126: -1 | I126: 407063 | J126: =VLOOKUP(B126,解锁功能查询!A:C,2,FALSE) -> 英雄等级上限提升 | K126: 英雄等级上限Lv.260 → Lv.270
A127: 1028 | B127: 4 | C127: 2 | D127: =VLOOKUP(K127,[1]主线及解锁!$E:$I,5,FALSE)+1 -> 491 | E127: 280 | F127: 1 | G127: 0 | H127: -1 | I127: 407063 | J127: =VLOOKUP(B127,解锁功能查询!A:C,2,FALSE) -> 英雄等级上限提升 | K127: 英雄等级上限Lv.270 → Lv.280
A128: 1029 | B128: 4 | C128: 2 | D128: =VLOOKUP(K128,[1]主线及解锁!$E:$I,5,FALSE)+1 -> 511 | E128: 290 | F128: 1 | G128: 0 | H128: -1 | I128: 407063 | J128: =VLOOKUP(B128,解锁功能查询!A:C,2,FALSE) -> 英雄等级上限提升 | K128: 英雄等级上限Lv.280 → Lv.290
A129: 1030 | B129: 4 | C129: 2 | D129: =VLOOKUP(K129,[1]主线及解锁!$E:$I,5,FALSE)+1 -> 531 | E129: 300 | F129: 1 | G129: 0 | H129: -1 | I129: 407063 | J129: =VLOOKUP(B129,解锁功能查询!A:C,2,FALSE) -> 英雄等级上限提升 | K129: 英雄等级上限Lv.290 → Lv.300
A130: 1031 | B130: 4 | C130: 2 | D130: =VLOOKUP(K130,[1]主线及解锁!$E:$I,5,FALSE)+1 -> 551 | E130: 310 | F130: 1 | G130: 0 | H130: -1 | I130: 407063 | J130: =VLOOKUP(B130,解锁功能查询!A:C,2,FALSE) -> 英雄等级上限提升 | K130: 英雄等级上限Lv.300 → Lv.310
A131: 1032 | B131: 4 | C131: 2 | D131: =VLOOKUP(K131,[1]主线及解锁!$E:$I,5,FALSE)+1 -> 571 | E131: 320 | F131: 1 | G131: 0 | H131: -1 | I131: 407063 | J131: =VLOOKUP(B131,解锁功能查询!A:C,2,FALSE) -> 英雄等级上限提升 | K131: 英雄等级上限Lv.310 → Lv.320
A132: 1033 | B132: 4 | C132: 2 | D132: =VLOOKUP(K132,[1]主线及解锁!$E:$I,5,FALSE)+1 -> 591 | E132: 330 | F132: 1 | G132: 0 | H132: -1 | I132: 407063 | J132: =VLOOKUP(B132,解锁功能查询!A:C,2,FALSE) -> 英雄等级上限提升 | K132: 英雄等级上限Lv.320 → Lv.330
A133: 1034 | B133: 4 | C133: 2 | D133: =VLOOKUP(K133,[1]主线及解锁!$E:$I,5,FALSE)+1 -> 611 | E133: 340 | F133: 1 | G133: 0 | H133: -1 | I133: 407063 | J133: =VLOOKUP(B133,解锁功能查询!A:C,2,FALSE) -> 英雄等级上限提升 | K133: 英雄等级上限Lv.330 → Lv.340
A134: 1035 | B134: 4 | C134: 2 | D134: =VLOOKUP(K134,[1]主线及解锁!$E:$I,5,FALSE)+1 -> 631 | E134: 350 | F134: 1 | G134: 0 | H134: -1 | I134: 407063 | J134: =VLOOKUP(B134,解锁功能查询!A:C,2,FALSE) -> 英雄等级上限提升 | K134: 英雄等级上限Lv.340 → Lv.350
A135: 1036 | B135: 4 | C135: 2 | D135: =VLOOKUP(K135,[1]主线及解锁!$E:$I,5,FALSE)+1 -> 651 | E135: 360 | F135: 1 | G135: 0 | H135: -1 | I135: 407063 | J135: =VLOOKUP(B135,解锁功能查询!A:C,2,FALSE) -> 英雄等级上限提升 | K135: 英雄等级上限Lv.350 → Lv.360
A136: 1037 | B136: 4 | C136: 2 | D136: =VLOOKUP(K136,[1]主线及解锁!$E:$I,5,FALSE)+1 -> 671 | E136: 370 | F136: 1 | G136: 0 | H136: -1 | I136: 407063 | J136: =VLOOKUP(B136,解锁功能查询!A:C,2,FALSE) -> 英雄等级上限提升 | K136: 英雄等级上限Lv.360 → Lv.370
A137: 1038 | B137: 4 | C137: 2 | D137: =VLOOKUP(K137,[1]主线及解锁!$E:$I,5,FALSE)+1 -> 691 | E137: 380 | F137: 1 | G137: 0 | H137: -1 | I137: 407063 | J137: =VLOOKUP(B137,解锁功能查询!A:C,2,FALSE) -> 英雄等级上限提升 | K137: 英雄等级上限Lv.370 → Lv.380
A138: 1039 | B138: 4 | C138: 2 | D138: =VLOOKUP(K138,[1]主线及解锁!$E:$I,5,FALSE)+1 -> 711 | E138: 390 | F138: 1 | G138: 0 | H138: -1 | I138: 407063 | J138: =VLOOKUP(B138,解锁功能查询!A:C,2,FALSE) -> 英雄等级上限提升 | K138: =CONCATENATE("英雄等级上限Lv.",E138-10," → Lv.",E138) -> 英雄等级上限Lv.380 → Lv.390
A139: 1040 | B139: 4 | C139: 2 | D139: =VLOOKUP(K139,[1]主线及解锁!$E:$I,5,FALSE)+1 -> 731 | E139: 400 | F139: 1 | G139: 0 | H139: -1 | I139: 407063 | J139: =VLOOKUP(B139,解锁功能查询!A:C,2,FALSE) -> 英雄等级上限提升 | K139: 英雄等级上限Lv.390 → Lv.400
A140: 1041 | B140: 4 | C140: 2 | D140: =VLOOKUP(K140,[1]主线及解锁!$E:$I,5,FALSE)+1 -> 751 | E140: 410 | F140: 1 | G140: 0 | H140: -1 | I140: 407063 | J140: =VLOOKUP(B140,解锁功能查询!A:C,2,FALSE) -> 英雄等级上限提升 | K140: 英雄等级上限Lv.400 → Lv.410
A141: 1042 | B141: 4 | C141: 2 | D141: =VLOOKUP(K141,[1]主线及解锁!$E:$I,5,FALSE)+1 -> 771 | E141: 420 | F141: 1 | G141: 0 | H141: -1 | I141: 407063 | J141: =VLOOKUP(B141,解锁功能查询!A:C,2,FALSE) -> 英雄等级上限提升 | K141: 英雄等级上限Lv.410 → Lv.420
A142: 1043 | B142: 4 | C142: 2 | D142: =VLOOKUP(K142,[1]主线及解锁!$E:$I,5,FALSE)+1 -> 791 | E142: 430 | F142: 1 | G142: 0 | H142: -1 | I142: 407063 | J142: =VLOOKUP(B142,解锁功能查询!A:C,2,FALSE) -> 英雄等级上限提升 | K142: 英雄等级上限Lv.420 → Lv.430
A143: 1044 | B143: 4 | C143: 2 | D143: =VLOOKUP(K143,[1]主线及解锁!$E:$I,5,FALSE)+1 -> 811 | E143: 440 | F143: 1 | G143: 0 | H143: -1 | I143: 407063 | J143: =VLOOKUP(B143,解锁功能查询!A:C,2,FALSE) -> 英雄等级上限提升 | K143: 英雄等级上限Lv.430 → Lv.440
A144: 1045 | B144: 4 | C144: 2 | D144: =VLOOKUP(K144,[1]主线及解锁!$E:$I,5,FALSE)+1 -> 831 | E144: 450 | F144: 1 | G144: 0 | H144: -1 | I144: 407063 | J144: =VLOOKUP(B144,解锁功能查询!A:C,2,FALSE) -> 英雄等级上限提升 | K144: 英雄等级上限Lv.440 → Lv.450
A145: 1046 | B145: 4 | C145: 2 | D145: =VLOOKUP(K145,[1]主线及解锁!$E:$I,5,FALSE)+1 -> 851 | E145: 460 | F145: 1 | G145: 0 | H145: -1 | I145: 407063 | J145: =VLOOKUP(B145,解锁功能查询!A:C,2,FALSE) -> 英雄等级上限提升 | K145: 英雄等级上限Lv.450 → Lv.460
A146: 1047 | B146: 4 | C146: 2 | D146: =VLOOKUP(K146,[1]主线及解锁!$E:$I,5,FALSE)+1 -> 871 | E146: 470 | F146: 1 | G146: 0 | H146: -1 | I146: 407063 | J146: =VLOOKUP(B146,解锁功能查询!A:C,2,FALSE) -> 英雄等级上限提升 | K146: 英雄等级上限Lv.460 → Lv.470
A147: 1048 | B147: 4 | C147: 2 | D147: =VLOOKUP(K147,[1]主线及解锁!$E:$I,5,FALSE)+1 -> 891 | E147: 480 | F147: 1 | G147: 0 | H147: -1 | I147: 407063 | J147: =VLOOKUP(B147,解锁功能查询!A:C,2,FALSE) -> 英雄等级上限提升 | K147: 英雄等级上限Lv.470 → Lv.480
A148: 1049 | B148: 4 | C148: 2 | D148: =VLOOKUP(K148,[1]主线及解锁!$E:$I,5,FALSE)+1 -> 911 | E148: 490 | F148: 1 | G148: 0 | H148: -1 | I148: 407063 | J148: =VLOOKUP(B148,解锁功能查询!A:C,2,FALSE) -> 英雄等级上限提升 | K148: 英雄等级上限Lv.480 → Lv.490
A149: 1050 | B149: 4 | C149: 2 | D149: =VLOOKUP(K149,[1]主线及解锁!$E:$I,5,FALSE)+1 -> 931 | E149: 500 | F149: 1 | G149: 0 | H149: -1 | I149: 407063 | J149: =VLOOKUP(B149,解锁功能查询!A:C,2,FALSE) -> 英雄等级上限提升 | K149: 英雄等级上限Lv.490 → Lv.500
A150: 1051 | B150: 4 | C150: 2 | D150: =VLOOKUP(K150,[1]主线及解锁!$E:$I,5,FALSE)+1 -> 951 | E150: 510 | F150: 1 | G150: 0 | H150: -1 | I150: 407063 | J150: =VLOOKUP(B150,解锁功能查询!A:C,2,FALSE) -> 英雄等级上限提升 | K150: 英雄等级上限Lv.500 → Lv.510
A151: 1052 | B151: 4 | C151: 2 | D151: =VLOOKUP(K151,[1]主线及解锁!$E:$I,5,FALSE)+1 -> 971 | E151: 520 | F151: 1 | G151: 0 | H151: -1 | I151: 407063 | J151: =VLOOKUP(B151,解锁功能查询!A:C,2,FALSE) -> 英雄等级上限提升 | K151: 英雄等级上限Lv.510 → Lv.520
A152: 1053 | B152: 4 | C152: 2 | D152: =VLOOKUP(K152,[1]主线及解锁!$E:$I,5,FALSE)+1 -> 991 | E152: 530 | F152: 1 | G152: 0 | H152: -1 | I152: 407063 | J152: =VLOOKUP(B152,解锁功能查询!A:C,2,FALSE) -> 英雄等级上限提升 | K152: 英雄等级上限Lv.520 → Lv.530
A153: 1054 | B153: 4 | C153: 2 | D153: =VLOOKUP(K153,[1]主线及解锁!$E:$I,5,FALSE)+1 -> 1011 | E153: 540 | F153: 1 | G153: 0 | H153: -1 | I153: 407063 | J153: =VLOOKUP(B153,解锁功能查询!A:C,2,FALSE) -> 英雄等级上限提升 | K153: 英雄等级上限Lv.530 → Lv.540
A154: 1055 | B154: 4 | C154: 2 | D154: =VLOOKUP(K154,[1]主线及解锁!$E:$I,5,FALSE)+1 -> 1031 | E154: 550 | F154: 1 | G154: 0 | H154: -1 | I154: 407063 | J154: =VLOOKUP(B154,解锁功能查询!A:C,2,FALSE) -> 英雄等级上限提升 | K154: 英雄等级上限Lv.540 → Lv.550
A155: 1056 | B155: 4 | C155: 2 | D155: =VLOOKUP(K155,[1]主线及解锁!$E:$I,5,FALSE)+1 -> 1051 | E155: 560 | F155: 1 | G155: 0 | H155: -1 | I155: 407063 | J155: =VLOOKUP(B155,解锁功能查询!A:C,2,FALSE) -> 英雄等级上限提升 | K155: 英雄等级上限Lv.550 → Lv.560
A156: 1057 | B156: 4 | C156: 2 | D156: =VLOOKUP(K156,[1]主线及解锁!$E:$I,5,FALSE)+1 -> 1071 | E156: 570 | F156: 1 | G156: 0 | H156: -1 | I156: 407063 | J156: =VLOOKUP(B156,解锁功能查询!A:C,2,FALSE) -> 英雄等级上限提升 | K156: 英雄等级上限Lv.560 → Lv.570
A157: 1058 | B157: 4 | C157: 2 | D157: =VLOOKUP(K157,[1]主线及解锁!$E:$I,5,FALSE)+1 -> 1091 | E157: 580 | F157: 1 | G157: 0 | H157: -1 | I157: 407063 | J157: =VLOOKUP(B157,解锁功能查询!A:C,2,FALSE) -> 英雄等级上限提升 | K157: 英雄等级上限Lv.570 → Lv.580
A158: 1059 | B158: 4 | C158: 2 | D158: =VLOOKUP(K158,[1]主线及解锁!$E:$I,5,FALSE)+1 -> 1111 | E158: 590 | F158: 1 | G158: 0 | H158: -1 | I158: 407063 | J158: =VLOOKUP(B158,解锁功能查询!A:C,2,FALSE) -> 英雄等级上限提升 | K158: 英雄等级上限Lv.580 → Lv.590
A159: 1060 | B159: 4 | C159: 2 | D159: =VLOOKUP(K159,[1]主线及解锁!$E:$I,5,FALSE)+1 -> 1131 | E159: 600 | F159: 1 | G159: 0 | H159: -1 | I159: 407063 | J159: =VLOOKUP(B159,解锁功能查询!A:C,2,FALSE) -> 英雄等级上限提升 | K159: 英雄等级上限Lv.590 → Lv.600
A160: 1061 | B160: 4 | C160: 2 | D160: =VLOOKUP(K160,[1]主线及解锁!$E:$I,5,FALSE)+1 -> 1151 | E160: 610 | F160: 1 | G160: 0 | H160: -1 | I160: 407063 | J160: =VLOOKUP(B160,解锁功能查询!A:C,2,FALSE) -> 英雄等级上限提升 | K160: 英雄等级上限Lv.600 → Lv.610
A161: 1062 | B161: 4 | C161: 2 | D161: =VLOOKUP(K161,[1]主线及解锁!$E:$I,5,FALSE)+1 -> 1171 | E161: 620 | F161: 1 | G161: 0 | H161: -1 | I161: 407063 | J161: =VLOOKUP(B161,解锁功能查询!A:C,2,FALSE) -> 英雄等级上限提升 | K161: 英雄等级上限Lv.610 → Lv.620
A162: 1063 | B162: 4 | C162: 2 | D162: =VLOOKUP(K162,[1]主线及解锁!$E:$I,5,FALSE)+1 -> 1191 | E162: 630 | F162: 1 | G162: 0 | H162: -1 | I162: 407063 | J162: =VLOOKUP(B162,解锁功能查询!A:C,2,FALSE) -> 英雄等级上限提升 | K162: 英雄等级上限Lv.620 → Lv.630
A163: 1064 | B163: 4 | C163: 2 | D163: =VLOOKUP(K163,[1]主线及解锁!$E:$I,5,FALSE)+1 -> 1211 | E163: 640 | F163: 1 | G163: 0 | H163: -1 | I163: 407063 | J163: =VLOOKUP(B163,解锁功能查询!A:C,2,FALSE) -> 英雄等级上限提升 | K163: 英雄等级上限Lv.630 → Lv.640
A164: 1065 | B164: 4 | C164: 2 | D164: =VLOOKUP(K164,[1]主线及解锁!$E:$I,5,FALSE)+1 -> 1231 | E164: 650 | F164: 1 | G164: 0 | H164: -1 | I164: 407063 | J164: =VLOOKUP(B164,解锁功能查询!A:C,2,FALSE) -> 英雄等级上限提升 | K164: 英雄等级上限Lv.640 → Lv.650
A165: 1066 | B165: 4 | C165: 2 | D165: =VLOOKUP(K165,[1]主线及解锁!$E:$I,5,FALSE)+1 -> 1251 | E165: 660 | F165: 1 | G165: 0 | H165: -1 | I165: 407063 | J165: =VLOOKUP(B165,解锁功能查询!A:C,2,FALSE) -> 英雄等级上限提升 | K165: 英雄等级上限Lv.650 → Lv.660
A166: 1067 | B166: 4 | C166: 2 | D166: =VLOOKUP(K166,[1]主线及解锁!$E:$I,5,FALSE)+1 -> 1271 | E166: 670 | F166: 1 | G166: 0 | H166: -1 | I166: 407063 | J166: =VLOOKUP(B166,解锁功能查询!A:C,2,FALSE) -> 英雄等级上限提升 | K166: 英雄等级上限Lv.660 → Lv.670
A167: 1068 | B167: 4 | C167: 2 | D167: =VLOOKUP(K167,[1]主线及解锁!$E:$I,5,FALSE)+1 -> 1291 | E167: 680 | F167: 1 | G167: 0 | H167: -1 | I167: 407063 | J167: =VLOOKUP(B167,解锁功能查询!A:C,2,FALSE) -> 英雄等级上限提升 | K167: 英雄等级上限Lv.670 → Lv.680
A168: 1069 | B168: 4 | C168: 2 | D168: =VLOOKUP(K168,[1]主线及解锁!$E:$I,5,FALSE)+1 -> 1311 | E168: 690 | F168: 1 | G168: 0 | H168: -1 | I168: 407063 | J168: =VLOOKUP(B168,解锁功能查询!A:C,2,FALSE) -> 英雄等级上限提升 | K168: 英雄等级上限Lv.680 → Lv.690
A169: 1070 | B169: 4 | C169: 2 | D169: =VLOOKUP(K169,[1]主线及解锁!$E:$I,5,FALSE)+1 -> 1331 | E169: 700 | F169: 1 | G169: 0 | H169: -1 | I169: 407063 | J169: =VLOOKUP(B169,解锁功能查询!A:C,2,FALSE) -> 英雄等级上限提升 | K169: 英雄等级上限Lv.690 → Lv.700
A170: 1071 | B170: 4 | C170: 2 | D170: =VLOOKUP(K170,[1]主线及解锁!$E:$I,5,FALSE)+1 -> 1351 | E170: 710 | F170: 1 | G170: 0 | H170: -1 | I170: 407063 | J170: =VLOOKUP(B170,解锁功能查询!A:C,2,FALSE) -> 英雄等级上限提升 | K170: 英雄等级上限Lv.700 → Lv.710
A171: 1072 | B171: 4 | C171: 2 | D171: =VLOOKUP(K171,[1]主线及解锁!$E:$I,5,FALSE)+1 -> 1371 | E171: 720 | F171: 1 | G171: 0 | H171: -1 | I171: 407063 | J171: =VLOOKUP(B171,解锁功能查询!A:C,2,FALSE) -> 英雄等级上限提升 | K171: 英雄等级上限Lv.710 → Lv.720
A172: 1073 | B172: 4 | C172: 2 | D172: =VLOOKUP(K172,[1]主线及解锁!$E:$I,5,FALSE)+1 -> 1391 | E172: 730 | F172: 1 | G172: 0 | H172: -1 | I172: 407063 | J172: =VLOOKUP(B172,解锁功能查询!A:C,2,FALSE) -> 英雄等级上限提升 | K172: 英雄等级上限Lv.720 → Lv.730
A173: 1074 | B173: 4 | C173: 2 | D173: =VLOOKUP(K173,[1]主线及解锁!$E:$I,5,FALSE)+1 -> 1411 | E173: 740 | F173: 1 | G173: 0 | H173: -1 | I173: 407063 | J173: =VLOOKUP(B173,解锁功能查询!A:C,2,FALSE) -> 英雄等级上限提升 | K173: 英雄等级上限Lv.730 → Lv.740
A174: 1075 | B174: 4 | C174: 2 | D174: =VLOOKUP(K174,[1]主线及解锁!$E:$I,5,FALSE)+1 -> 1431 | E174: 750 | F174: 1 | G174: 0 | H174: -1 | I174: 407063 | J174: =VLOOKUP(B174,解锁功能查询!A:C,2,FALSE) -> 英雄等级上限提升 | K174: 英雄等级上限Lv.740 → Lv.750
A175: 1076 | B175: 4 | C175: 2 | D175: =VLOOKUP(K175,[1]主线及解锁!$E:$I,5,FALSE)+1 -> 1451 | E175: 760 | F175: 1 | G175: 0 | H175: -1 | I175: 407063 | J175: =VLOOKUP(B175,解锁功能查询!A:C,2,FALSE) -> 英雄等级上限提升 | K175: 英雄等级上限Lv.750 → Lv.760
A176: 1077 | B176: 4 | C176: 2 | D176: =VLOOKUP(K176,[1]主线及解锁!$E:$I,5,FALSE)+1 -> 1471 | E176: 770 | F176: 1 | G176: 0 | H176: -1 | I176: 407063 | J176: =VLOOKUP(B176,解锁功能查询!A:C,2,FALSE) -> 英雄等级上限提升 | K176: 英雄等级上限Lv.760 → Lv.770
A177: 1078 | B177: 4 | C177: 2 | D177: =VLOOKUP(K177,[1]主线及解锁!$E:$I,5,FALSE)+1 -> 1491 | E177: 780 | F177: 1 | G177: 0 | H177: -1 | I177: 407063 | J177: =VLOOKUP(B177,解锁功能查询!A:C,2,FALSE) -> 英雄等级上限提升 | K177: 英雄等级上限Lv.770 → Lv.780
A178: 1079 | B178: 4 | C178: 2 | D178: =VLOOKUP(K178,[1]主线及解锁!$E:$I,5,FALSE)+1 -> 1511 | E178: 790 | F178: 1 | G178: 0 | H178: -1 | I178: 407063 | J178: =VLOOKUP(B178,解锁功能查询!A:C,2,FALSE) -> 英雄等级上限提升 | K178: 英雄等级上限Lv.780 → Lv.790
A179: 1080 | B179: 4 | C179: 2 | D179: =VLOOKUP(K179,[1]主线及解锁!$E:$I,5,FALSE)+1 -> 1531 | E179: 800 | F179: 1 | G179: 0 | H179: -1 | I179: 407063 | J179: =VLOOKUP(B179,解锁功能查询!A:C,2,FALSE) -> 英雄等级上限提升 | K179: 英雄等级上限Lv.790 → Lv.800
A180: 1081 | B180: 4 | C180: 2 | D180: =VLOOKUP(K180,[1]主线及解锁!$E:$I,5,FALSE)+1 -> 1551 | E180: 810 | F180: 1 | G180: 0 | H180: -1 | I180: 407063 | J180: =VLOOKUP(B180,解锁功能查询!A:C,2,FALSE) -> 英雄等级上限提升 | K180: 英雄等级上限Lv.800 → Lv.810
A181: 1082 | B181: 4 | C181: 2 | D181: =VLOOKUP(K181,[1]主线及解锁!$E:$I,5,FALSE)+1 -> 1571 | E181: 820 | F181: 1 | G181: 0 | H181: -1 | I181: 407063 | J181: =VLOOKUP(B181,解锁功能查询!A:C,2,FALSE) -> 英雄等级上限提升 | K181: 英雄等级上限Lv.810 → Lv.820
A182: 1083 | B182: 4 | C182: 2 | D182: =VLOOKUP(K182,[1]主线及解锁!$E:$I,5,FALSE)+1 -> 1591 | E182: 830 | F182: 1 | G182: 0 | H182: -1 | I182: 407063 | J182: =VLOOKUP(B182,解锁功能查询!A:C,2,FALSE) -> 英雄等级上限提升 | K182: 英雄等级上限Lv.820 → Lv.830
A183: 1084 | B183: 4 | C183: 2 | D183: =VLOOKUP(K183,[1]主线及解锁!$E:$I,5,FALSE)+1 -> 1611 | E183: 840 | F183: 1 | G183: 0 | H183: -1 | I183: 407063 | J183: =VLOOKUP(B183,解锁功能查询!A:C,2,FALSE) -> 英雄等级上限提升 | K183: 英雄等级上限Lv.830 → Lv.840
A184: 1085 | B184: 4 | C184: 2 | D184: =VLOOKUP(K184,[1]主线及解锁!$E:$I,5,FALSE)+1 -> 1631 | E184: 850 | F184: 1 | G184: 0 | H184: -1 | I184: 407063 | J184: =VLOOKUP(B184,解锁功能查询!A:C,2,FALSE) -> 英雄等级上限提升 | K184: 英雄等级上限Lv.840 → Lv.850
A185: 1086 | B185: 4 | C185: 2 | D185: =VLOOKUP(K185,[1]主线及解锁!$E:$I,5,FALSE)+1 -> 1651 | E185: 860 | F185: 1 | G185: 0 | H185: -1 | I185: 407063 | J185: =VLOOKUP(B185,解锁功能查询!A:C,2,FALSE) -> 英雄等级上限提升 | K185: 英雄等级上限Lv.850 → Lv.860
A186: 1087 | B186: 4 | C186: 2 | D186: =VLOOKUP(K186,[1]主线及解锁!$E:$I,5,FALSE)+1 -> 1671 | E186: 870 | F186: 1 | G186: 0 | H186: -1 | I186: 407063 | J186: =VLOOKUP(B186,解锁功能查询!A:C,2,FALSE) -> 英雄等级上限提升 | K186: 英雄等级上限Lv.860 → Lv.870
A187: 1088 | B187: 4 | C187: 2 | D187: =VLOOKUP(K187,[1]主线及解锁!$E:$I,5,FALSE)+1 -> 1691 | E187: 880 | F187: 1 | G187: 0 | H187: -1 | I187: 407063 | J187: =VLOOKUP(B187,解锁功能查询!A:C,2,FALSE) -> 英雄等级上限提升 | K187: 英雄等级上限Lv.870 → Lv.880
A188: 1089 | B188: 4 | C188: 2 | D188: =VLOOKUP(K188,[1]主线及解锁!$E:$I,5,FALSE)+1 -> 1711 | E188: 890 | F188: 1 | G188: 0 | H188: -1 | I188: 407063 | J188: =VLOOKUP(B188,解锁功能查询!A:C,2,FALSE) -> 英雄等级上限提升 | K188: 英雄等级上限Lv.880 → Lv.890
A189: 1090 | B189: 4 | C189: 2 | D189: =VLOOKUP(K189,[1]主线及解锁!$E:$I,5,FALSE)+1 -> 1731 | E189: 900 | F189: 1 | G189: 0 | H189: -1 | I189: 407063 | J189: =VLOOKUP(B189,解锁功能查询!A:C,2,FALSE) -> 英雄等级上限提升 | K189: 英雄等级上限Lv.890 → Lv.900
A190: 1091 | B190: 4 | C190: 2 | D190: =VLOOKUP(K190,[1]主线及解锁!$E:$I,5,FALSE)+1 -> 1751 | E190: 910 | F190: 1 | G190: 0 | H190: -1 | I190: 407063 | J190: =VLOOKUP(B190,解锁功能查询!A:C,2,FALSE) -> 英雄等级上限提升 | K190: 英雄等级上限Lv.900 → Lv.910
A191: 1092 | B191: 4 | C191: 2 | D191: =VLOOKUP(K191,[1]主线及解锁!$E:$I,5,FALSE)+1 -> 1771 | E191: 920 | F191: 1 | G191: 0 | H191: -1 | I191: 407063 | J191: =VLOOKUP(B191,解锁功能查询!A:C,2,FALSE) -> 英雄等级上限提升 | K191: 英雄等级上限Lv.910 → Lv.920
A192: 1093 | B192: 4 | C192: 2 | D192: =VLOOKUP(K192,[1]主线及解锁!$E:$I,5,FALSE)+1 -> 1791 | E192: 930 | F192: 1 | G192: 0 | H192: -1 | I192: 407063 | J192: =VLOOKUP(B192,解锁功能查询!A:C,2,FALSE) -> 英雄等级上限提升 | K192: 英雄等级上限Lv.920 → Lv.930
A193: 1094 | B193: 4 | C193: 2 | D193: =VLOOKUP(K193,[1]主线及解锁!$E:$I,5,FALSE)+1 -> 1811 | E193: 940 | F193: 1 | G193: 0 | H193: -1 | I193: 407063 | J193: =VLOOKUP(B193,解锁功能查询!A:C,2,FALSE) -> 英雄等级上限提升 | K193: 英雄等级上限Lv.930 → Lv.940
A194: 1095 | B194: 4 | C194: 2 | D194: =VLOOKUP(K194,[1]主线及解锁!$E:$I,5,FALSE)+1 -> 1831 | E194: 950 | F194: 1 | G194: 0 | H194: -1 | I194: 407063 | J194: =VLOOKUP(B194,解锁功能查询!A:C,2,FALSE) -> 英雄等级上限提升 | K194: 英雄等级上限Lv.940 → Lv.950
A195: 1096 | B195: 4 | C195: 2 | D195: =VLOOKUP(K195,[1]主线及解锁!$E:$I,5,FALSE)+1 -> 1851 | E195: 960 | F195: 1 | G195: 0 | H195: -1 | I195: 407063 | J195: =VLOOKUP(B195,解锁功能查询!A:C,2,FALSE) -> 英雄等级上限提升 | K195: 英雄等级上限Lv.950 → Lv.960
A196: 1097 | B196: 4 | C196: 2 | D196: =VLOOKUP(K196,[1]主线及解锁!$E:$I,5,FALSE)+1 -> 1871 | E196: 970 | F196: 1 | G196: 0 | H196: -1 | I196: 407063 | J196: =VLOOKUP(B196,解锁功能查询!A:C,2,FALSE) -> 英雄等级上限提升 | K196: 英雄等级上限Lv.960 → Lv.970
A197: 1098 | B197: 4 | C197: 2 | D197: =VLOOKUP(K197,[1]主线及解锁!$E:$I,5,FALSE)+1 -> 1891 | E197: 980 | F197: 1 | G197: 0 | H197: -1 | I197: 407063 | J197: =VLOOKUP(B197,解锁功能查询!A:C,2,FALSE) -> 英雄等级上限提升 | K197: 英雄等级上限Lv.970 → Lv.980
A198: 1099 | B198: 4 | C198: 2 | D198: =VLOOKUP(K198,[1]主线及解锁!$E:$I,5,FALSE)+1 -> 1911 | E198: 990 | F198: 1 | G198: 0 | H198: -1 | I198: 407063 | J198: =VLOOKUP(B198,解锁功能查询!A:C,2,FALSE) -> 英雄等级上限提升 | K198: 英雄等级上限Lv.980 → Lv.990
A199: 1100 | B199: 4 | C199: 2 | D199: =VLOOKUP(K199,[1]主线及解锁!$E:$I,5,FALSE)+1 -> 1931 | E199: 1000 | F199: 1 | G199: 0 | H199: -1 | I199: 407063 | J199: =VLOOKUP(B199,解锁功能查询!A:C,2,FALSE) -> 英雄等级上限提升 | K199: 英雄等级上限Lv.990 → Lv.1000
I200: 407063
A201: 2001 | B201: 601 | C201: 2 | D201: =VLOOKUP(K201,[1]主线及解锁!$E:$I,5,FALSE)+1 -> 128 | E201: 5 | F201: 1 | G201: 0 | H201: -1 | I201: 407063 | J201: =VLOOKUP(B201,解锁功能查询!A:C,2,FALSE) -> 残响强化等级上限解锁 | K201: 残响强化上限+0 → +5
... 24 more rows

Sheet SubunlockConfig
A1: ID | B1: unlockSystem | C1: unlockSubystem | D1: unlocHeroDuty | E1: ulockHeroLevel
A2: int | B2: int | C2: int | D2: int | E2: int
A4: ID | B4: 1=防具栏位 2=遗物栏位 3=秘石栏位 | C4: unlockSystem=1时：随身装备部位 1=鞋子 2=衣服 3=腰带 unlockSystem=2时：遗物部位 1=部件A-希音遗物 2=部件B-曜烨遗物 3=部件C-馨香遗物 4=部件D-藏微遗物 | D4: 解锁所需英雄定位 0=任意定位 1=肉盾 2=输出 3=治疗 4=辅助 | E4: 解锁所需英雄等级
A5: 101 | B5: 1 | C5: 1 | D5: 1 | E5: =I7 -> 10 | H5: 不同职业随身装备各部位解锁所需英雄等级
A6: 102 | B6: 1 | C6: 1 | D6: 2 | E6: =J7 -> 200 | I6: 坦克（重） | J6: 输出（皮） | K6: 治疗（布） | L6: 辅助（布） | O6: 重甲 | P6: 皮甲 | Q6: 布甲
A7: 103 | B7: 1 | C7: 1 | D7: 3 | E7: =K7 -> 400 | G7: 防御 | H7: 鞋子 | I7: 10 | J7: 200 | K7: 400 | L7: 200 | N7: 防御 | O7: 1.5 | P7: 1 | Q7: 0.5 | S7: 300 | T7: 200
A8: 104 | B8: 1 | C8: 1 | D8: 4 | E8: =L7 -> 200 | G8: 生命 | H8: 衣服 | I8: 200 | J8: 400 | K8: 10 | L8: 10 | N8: 生命 | O8: 1 | P8: 0.5 | Q8: 1.5 | S8: 600 | T8: 800
A9: 105 | B9: 1 | C9: 2 | D9: 1 | E9: =I8 -> 200 | G9: 攻击 | H9: 腰带 | I9: 400 | J9: 10 | K9: 200 | L9: 400 | N9: 攻击 | O9: 0.5 | P9: 1.5 | Q9: 1 | S9: 900 | T9: 2000
A10: 106 | B10: 1 | C10: 2 | D10: 2 | E10: =J8 -> 400
A11: 107 | B11: 1 | C11: 2 | D11: 3 | E11: =K8 -> 10
A12: 108 | B12: 1 | C12: 2 | D12: 4 | E12: =L8 -> 10
A13: 109 | B13: 1 | C13: 3 | D13: 1 | E13: =I9 -> 400
A14: 110 | B14: 1 | C14: 3 | D14: 2 | E14: =J9 -> 10
A15: 111 | B15: 1 | C15: 3 | D15: 3 | E15: =K9 -> 200
A16: 112 | B16: 1 | C16: 3 | D16: 4 | E16: =L9 -> 400
A18: 201 | B18: 2 | C18: 1 | D18: 1 | E18: 90 | H18: 不同职业遗物各位置解锁所需英雄等级
A19: 202 | B19: 2 | C19: 1 | D19: 2 | E19: 90 | I19: 坦克 | J19: 输出 | K19: 治疗 | L19: 辅助
A20: 203 | B20: 2 | C20: 1 | D20: 3 | E20: 90 | G20: 生命 | H20: 部位1 | I20: 90 | J20: 90 | K20: 90 | L20: 90
A21: 204 | B21: 2 | C21: 1 | D21: 4 | E21: 90 | G21: 防御 | H21: 部位2 | I21: 90 | J21: 90 | K21: 90 | L21: 90
A22: 205 | B22: 2 | C22: 2 | D22: 1 | E22: 90 | G22: 攻击 | H22: 部位3 | I22: 90 | J22: 90 | K22: 90 | L22: 90
A23: 206 | B23: 2 | C23: 2 | D23: 2 | E23: 90 | G23: 辅助 | H23: 部位4 | I23: 90 | J23: 90 | K23: 90 | L23: 90
A24: 207 | B24: 2 | C24: 2 | D24: 3 | E24: 90
A25: 208 | B25: 2 | C25: 2 | D25: 4 | E25: 90
A26: 209 | B26: 2 | C26: 3 | D26: 1 | E26: 90
A27: 210 | B27: 2 | C27: 3 | D27: 2 | E27: 90
A28: 211 | B28: 2 | C28: 3 | D28: 3 | E28: 90
A29: 212 | B29: 2 | C29: 3 | D29: 4 | E29: 90
A30: 213 | B30: 2 | C30: 4 | D30: 1 | E30: 90
A31: 214 | B31: 2 | C31: 4 | D31: 2 | E31: 90 | I31: 31 | J31: 51 | K31: 31 | L31: 51
A32: 215 | B32: 2 | C32: 4 | D32: 3 | E32: 90 | I32: 51 | J32: 31 | K32: 51 | L32: 31
A33: 216 | B33: 2 | C33: 4 | D33: 4 | E33: 90 | I33: 51 | J33: 31 | K33: 51 | L33: 31
A35: 301 | B35: 3 | C35: 1 | D35: 0 | E35: 500

Sheet 解锁功能查询
A1: ulockFunction | B1: 解锁功能 | C1: functionValue代表的意义 | D1: 计数 | S1: 遗物部位 | T1: 随身装备部位
A2: 1 | B2: 飞艇等级上限 | C2: 飞艇等级上限解锁到多少级 | D2: =COUNTIF(UnlockConfig!B:B,解锁功能查询!A2) -> 0 | M2: 飞艇等级上限 | N2: 飞艇等级上限解锁到多少级 | S2: int | T2: int
A3: 4 | B3: 英雄等级上限提升 | C3: 英雄等级上限解锁到多少级
A4: 101 | B4: 勋章栏位1解锁 | D4: =COUNTIF(UnlockConfig!B:B,解锁功能查询!A4) -> 0 | M4: 勋章栏位 | N4: 解锁第几个勋章栏位
A5: 102 | B5: 勋章栏位2解锁 | D5: =COUNTIF(UnlockConfig!B:B,解锁功能查询!A5) -> 0 | M5: 商业街建筑 | N5: 1=酒馆（悬赏） 2=职业介绍所（抽卡） 3=铁匠铺（防具&抽武器） 4=生物馆 5=健身房 | S5: 装备类型 1:部件A 2:部件B 3:部件C 4:部件D | T5: 装备类型 1=鞋子 2=衣服 3=腰带
A6: 103 | B6: 勋章栏位3解锁 | D6: =COUNTIF(UnlockConfig!B:B,解锁功能查询!A6) -> 0 | M6: 秘石栏位解锁 | N6: 解锁第几个秘石栏位
A7: 104 | B7: 勋章栏位4解锁 | D7: =COUNTIF(UnlockConfig!B:B,解锁功能查询!A7) -> 0 | M7: 排位赛解锁 | N7: 无
A8: 105 | B8: 英雄界面-武具-秘石 | D8: =COUNTIF(UnlockConfig!B:B,解锁功能查询!A8) -> 0 | M8: 好友&聊天 | N8: 无
A9: 106 | B9: 英雄界面-武具-遗物 | D9: =COUNTIF(UnlockConfig!B:B,解锁功能查询!A9) -> 0 | M9: 资源本 | N9: 1金币 2英雄经验 3防具材料 4武器经验
A10: 107 | D10: =COUNTIF(UnlockConfig!B:B,解锁功能查询!A10) -> 0 | M10: 入围赛解锁 | N10: 无
A11: 108 | D11: =COUNTIF(UnlockConfig!B:B,解锁功能查询!A11) -> 0 | M11: 藏宝图玩法 | N11: 无
A12: 109 | B12: 符文选项卡+秘石的提升按钮 | D12: =COUNTIF(UnlockConfig!B:B,解锁功能查询!A12) -> 0 | M12: 符文解锁 | N12: 无
D13: =COUNTIF(UnlockConfig!B:B,解锁功能查询!A13) -> 0
A14: 201 | B14: 【入口】冒险-物资枢纽+第1个选项卡 | D14: =COUNTIF(UnlockConfig!B:B,解锁功能查询!A14) -> 1
A15: 202 | B15: 物资枢纽-闹鬼金矿（金币） | D15: =COUNTIF(UnlockConfig!B:B,解锁功能查询!A15) -> 1
A16: 203 | B16: 物资枢纽-巨石营地（英雄经验） | D16: =COUNTIF(UnlockConfig!B:B,解锁功能查询!A16) -> 1
A17: 204 | B17: 物资枢纽-机械废墟（残响） | D17: =COUNTIF(UnlockConfig!B:B,解锁功能查询!A17) -> 0
A18: 205 | B18: 物资枢纽-深渊猎场（防具材料） | D18: =COUNTIF(UnlockConfig!B:B,解锁功能查询!A18) -> 1
A19: 206 | B19: 勇士选拔赛按钮 | D19: =COUNTIF(UnlockConfig!B:B,解锁功能查询!A19) -> 0
A20: 207 | B20: 入围赛入口 | D20: =COUNTIF(UnlockConfig!B:B,解锁功能查询!A20) -> 0
A21: 208 | B21: 排位赛入口 | D21: =COUNTIF(UnlockConfig!B:B,解锁功能查询!A21) -> 0
A22: 209 | B22: 【入口】冒险-藏宝图 | D22: =COUNTIF(UnlockConfig!B:B,解锁功能查询!A22) -> 1
A23: 210 | B23: 藏宝图商店选项卡 | D23: =COUNTIF(UnlockConfig!B:B,解锁功能查询!A23) -> 0
A24: 211 | B24: 打工玩法选项卡 | D24: =COUNTIF(UnlockConfig!B:B,解锁功能查询!A24) -> 0
A25: 212 | B25: BURP酒馆-悬赏任务 | D25: =COUNTIF(UnlockConfig!B:B,解锁功能查询!A25) -> 1
A26: 213 | B26: 【入口】冒险-模拟训练选 | D26: =COUNTIF(UnlockConfig!B:B,解锁功能查询!A26) -> 1
A27: 214 | B27: 【入口】冒险指南1 | D27: =COUNTIF(UnlockConfig!B:B,解锁功能查询!A27) -> 1
A28: 215 | B28: 【入口】日常周常 | D28: =COUNTIF(UnlockConfig!B:B,解锁功能查询!A28) -> 1
A29: 216 | B29: 成就界面 | D29: =COUNTIF(UnlockConfig!B:B,解锁功能查询!A29) -> 1
A30: 217 | B30: 试炼之地-流明试炼1（主线） | D30: =COUNTIF(UnlockConfig!B:B,解锁功能查询!A30) -> 1
A31: 218 | B31: 试炼之地-流明试炼2（火） | D31: =COUNTIF(UnlockConfig!B:B,解锁功能查询!A31) -> 1
A32: 219 | B32: 试炼之地-流明试炼3（冰） | D32: =COUNTIF(UnlockConfig!B:B,解锁功能查询!A32) -> 1
A33: 220 | B33: 试炼之地-流明试炼4（雷） | D33: =COUNTIF(UnlockConfig!B:B,解锁功能查询!A33) -> 1
A34: 221 | B34: 试炼之地-流明试炼5 | D34: =COUNTIF(UnlockConfig!B:B,解锁功能查询!A34) -> 0
A35: 222 | B35: 试炼之地-时光试炼1 | D35: =COUNTIF(UnlockConfig!B:B,解锁功能查询!A35) -> 1
A36: 223 | B36: 试炼之地-时光试炼2 | D36: =COUNTIF(UnlockConfig!B:B,解锁功能查询!A36) -> 1
A37: 224 | B37: 试炼之地-时光试炼3 | D37: =COUNTIF(UnlockConfig!B:B,解锁功能查询!A37) -> 1
A38: 225 | B38: 试炼之地-时光试炼4 | D38: =COUNTIF(UnlockConfig!B:B,解锁功能查询!A38) -> 1
A39: 226 | B39: 试炼之地-时光试炼5 | D39: =COUNTIF(UnlockConfig!B:B,解锁功能查询!A39) -> 1
A40: 227 | B40: 试炼之地-时光试炼6 | D40: =COUNTIF(UnlockConfig!B:B,解锁功能查询!A40) -> 1
A41: 228 | B41: 试炼之地-轮回试炼1 | D41: =COUNTIF(UnlockConfig!B:B,解锁功能查询!A41) -> 1
A42: 229 | B42: 试炼之地-轮回试炼2 | D42: =COUNTIF(UnlockConfig!B:B,解锁功能查询!A42) -> 1
A43: 230 | B43: 试炼之地-轮回试炼3 | D43: =COUNTIF(UnlockConfig!B:B,解锁功能查询!A43) -> 1
A44: 231 | B44: 藏宝图-单人行动选项卡 | D44: =COUNTIF(UnlockConfig!B:B,解锁功能查询!A44) -> 1
A45: 232 | B45: 藏宝图-我是队长&加入行动选项卡 | D45: =COUNTIF(UnlockConfig!B:B,解锁功能查询!A45) -> 1
A46: 233 | B46: 物资枢纽-第2个选项卡（遗物） | D46: =COUNTIF(UnlockConfig!B:B,解锁功能查询!A46) -> 1
A47: 234 | B47: 物资枢纽-残响1 | D47: =COUNTIF(UnlockConfig!B:B,解锁功能查询!A47) -> 1
A48: 235 | B48: 物资枢纽-残响2 | D48: =COUNTIF(UnlockConfig!B:B,解锁功能查询!A48) -> 1
A49: 236 | B49: 物资枢纽-残响3 | D49: =COUNTIF(UnlockConfig!B:B,解锁功能查询!A49) -> 1
A50: 237 | B50: 物资枢纽-残响4 | D50: =COUNTIF(UnlockConfig!B:B,解锁功能查询!A50) -> 1
A51: 238 | B51: 冒险指南2 | D51: =COUNTIF(UnlockConfig!B:B,解锁功能查询!A51) -> 1
A52: 239 | B52: 契约按钮 | D52: =COUNTIF(UnlockConfig!B:B,解锁功能查询!A52) -> 1
A53: 240 | B53: 赛季模拟训练 | D53: =COUNTIF(UnlockConfig!B:B,解锁功能查询!A53) -> 1
A54: 241 | B54: 深渊道馆入口按钮 | D54: =COUNTIF(UnlockConfig!B:B,解锁功能查询!A54) -> 1
A55: 242 | B55: 藏宝图活动入口 | D55: =COUNTIF(UnlockConfig!B:B,解锁功能查询!A55) -> 1
A57: 301 | B57: 主界面-BURP酒馆入口 | D57: =COUNTIF(UnlockConfig!B:B,解锁功能查询!A57) -> 1
A58: 302 | B58: 职业介绍所建筑入口 | D58: =COUNTIF(UnlockConfig!B:B,解锁功能查询!A58) -> 0
A59: 303 | B59: 【入口】主界面-铁匠铺 | D59: =COUNTIF(UnlockConfig!B:B,解锁功能查询!A59) -> 1
A60: 304 | B60: 生物馆建筑入口 | D60: =COUNTIF(UnlockConfig!B:B,解锁功能查询!A60) -> 0
A61: 305 | B61: 健身房建筑入口 | D61: =COUNTIF(UnlockConfig!B:B,解锁功能查询!A61) -> 0
A62: 306 | B62: 【入口】好友 | D62: =COUNTIF(UnlockConfig!B:B,解锁功能查询!A62) -> 1
A63: 307 | B63: 【入口】聊天UI | D63: =COUNTIF(UnlockConfig!B:B,解锁功能查询!A63) -> 1
A64: 308 | B64: 【入口】英雄招募 | D64: =COUNTIF(UnlockConfig!B:B,解锁功能查询!A64) -> 1
A65: 309 | B65: 【入口】冒险-精英共斗 | D65: =COUNTIF(UnlockConfig!B:B,解锁功能查询!A65) -> 1
A66: 310 | B66: 商业街-巡回商人 | D66: =COUNTIF(UnlockConfig!B:B,解锁功能查询!A66) -> 0
A67: 311 | B67: 【入口】主界面-商店 | D67: =COUNTIF(UnlockConfig!B:B,解锁功能查询!A67) -> 1
A68: 312 | B68: 酒馆商店选项卡 | D68: =COUNTIF(UnlockConfig!B:B,解锁功能查询!A68) -> 0
A69: 313 | B69: 职业介绍所商店选项卡 | D69: =COUNTIF(UnlockConfig!B:B,解锁功能查询!A69) -> 0
A70: 314 | B70: 铁匠铺商店选项卡 | D70: =COUNTIF(UnlockConfig!B:B,解锁功能查询!A70) -> 0
A71: 315 | B71: 【选项卡】英雄详情-觉醒 | D71: =COUNTIF(UnlockConfig!B:B,解锁功能查询!A71) -> 1
A72: 316 | B72: 【选项卡】英雄详情-防具 | D72: =COUNTIF(UnlockConfig!B:B,解锁功能查询!A72) -> 1
A73: 317 | B73: 【选项卡】英雄详情-武具 | D73: =COUNTIF(UnlockConfig!B:B,解锁功能查询!A73) -> 1
A74: 318 | B74: 【选项卡】英雄详情-羁绊 | D74: =COUNTIF(UnlockConfig!B:B,解锁功能查询!A74) -> 0
A75: 319 | B75: 【入口】预设编队 | D75: =COUNTIF(UnlockConfig!B:B,解锁功能查询!A75) -> 1
A76: 320 | B76: 【选项卡】铁匠铺-武器强化 | D76: =COUNTIF(UnlockConfig!B:B,解锁功能查询!A76) -> 0
A77: 321 | B77: 【入口】编队界面-神器 | D77: =COUNTIF(UnlockConfig!B:B,解锁功能查询!A77) -> 1
A78: 322 | B78: 解锁商城-礼包商店 | D78: =COUNTIF(UnlockConfig!B:B,解锁功能查询!A78) -> 0
A79: 323 | B79: 解锁商城-招募商店 | D79: =COUNTIF(UnlockConfig!B:B,解锁功能查询!A79) -> 0
A80: 324 | B80: 【入口】公告 | D80: =COUNTIF(UnlockConfig!B:B,解锁功能查询!A80) -> 1
A81: 325 | B81: 【入口】邮件 | D81: =COUNTIF(UnlockConfig!B:B,解锁功能查询!A81) -> 1
A82: 326 | B82: 【入口】主线-三星奖励 | D82: =COUNTIF(UnlockConfig!B:B,解锁功能查询!A82) -> 1
A83: 327 | B83: 英雄-详情-生活技能 | D83: =COUNTIF(UnlockConfig!B:B,解锁功能查询!A83) -> 0
A84: 328 | B84: 【入口】图鉴 | D84: =COUNTIF(UnlockConfig!B:B,解锁功能查询!A84) -> 1
A85: 329 | B85: 【选项卡】铁匠铺-合成 | D85: =COUNTIF(UnlockConfig!B:B,解锁功能查询!A85) -> 1
A86: 330 | B86: 【入口】冒险-试炼之地 | D86: =COUNTIF(UnlockConfig!B:B,解锁功能查询!A86) -> 1
A87: 331 | B87: 【入口】战令 | D87: =COUNTIF(UnlockConfig!B:B,解锁功能查询!A87) -> 1
A88: 332 | B88: 商店-小镇杂货 | D88: =COUNTIF(UnlockConfig!B:B,解锁功能查询!A88) -> 1
A89: 333 | B89: 商店-模拟训练 | D89: =COUNTIF(UnlockConfig!B:B,解锁功能查询!A89) -> 1
A90: 334 | B90: 冲刺活动按钮 | D90: =COUNTIF(UnlockConfig!B:B,解锁功能查询!A90) -> 1
A91: 335 | B91: 残响的强化按钮 | D91: =COUNTIF(UnlockConfig!B:B,解锁功能查询!A91) -> 1
A92: 336 | B92: 【入口】铁匠铺-时光之契 | D92: 1
A93: 337 | B93: 【入口】铁匠铺-打造武器 | D93: 1
A94: 338 | B94: 【入口】英雄 | D94: 1
A95: 339 | B95: 【入口】背包 | D95: 1
A96: 340 | B96: 编队 | D96: 1
A97: 401 | B97: 主线第1章 | D97: =COUNTIF(UnlockConfig!B:B,解锁功能查询!A97) -> 0
A98: 402 | B98: 主线第2章 | D98: =COUNTIF(UnlockConfig!B:B,解锁功能查询!A98) -> 0
A99: 403 | B99: 主线第3章 | D99: =COUNTIF(UnlockConfig!B:B,解锁功能查询!A99) -> 0
A100: 404 | B100: 主线第4章 | D100: =COUNTIF(UnlockConfig!B:B,解锁功能查询!A100) -> 0
A101: 405 | B101: 主线第5章 | D101: =COUNTIF(UnlockConfig!B:B,解锁功能查询!A101) -> 0
A102: 406 | B102: 主线第6章 | D102: =COUNTIF(UnlockConfig!B:B,解锁功能查询!A102) -> 0
A103: 407 | B103: 主线第7章 | D103: =COUNTIF(UnlockConfig!B:B,解锁功能查询!A103) -> 0
A104: 408 | B104: 主线第8章 | D104: =COUNTIF(UnlockConfig!B:B,解锁功能查询!A104) -> 0
A105: 409 | B105: 主线第9章 | D105: =COUNTIF(UnlockConfig!B:B,解锁功能查询!A105) -> 0
A106: 410 | B106: 主线第10章 | D106: =COUNTIF(UnlockConfig!B:B,解锁功能查询!A106) -> 0
A108: 2 | B108: 勋章栏位解锁 | C108: 解锁哪个栏位
A109: 3 | B109: 秘石栏位解锁 | C109: 解锁哪个栏位
A111: 501 | B111: 战斗-2倍速
A112: 502 | B112: 战斗-自动释放终结技
A113: 503 | B113: 战斗-自动战斗
A114: 504 | B114: 战斗-瞄准线按钮
A116: 505 | B116: 专属遗物信息解锁。解锁前，编队界面选神器后，英雄不显示专属遗物相关信息，神器上不显示强化效果信息
A117: 506 | B117: 日常签到
A118: 507 | B118: 活动框架
A119: 508 | B119: 公会
A121: 509 | B121: 关闭新手特殊指引，当新手特殊指引开启时，玩家在主界面停留6秒且无任何操作时，指定区域会出现光圈或手型图标。玩家点击对应图标会跳转到对应玩法
A122: 510 | B122: 【引导】英雄界面引导 | D122: =COUNTIF(UnlockConfig!B:B,解锁功能查询!A122) -> 1
A123: 511 | B123: 【引导】累计星星引导 | D123: =COUNTIF(UnlockConfig!B:B,解锁功能查询!A123) -> 1
A124: 512 | B124: 【引导】切换章节引导 | D124: =COUNTIF(UnlockConfig!B:B,解锁功能查询!A124) -> 1
A125: 513 | B125: 【引导】防具强化引导 | D125: =COUNTIF(UnlockConfig!B:B,解锁功能查询!A125) -> 1
A126: 514 | B126: 【引导】进通道2引导 | D126: =COUNTIF(UnlockConfig!B:B,解锁功能查询!A126) -> 1
A127: 515 | B127: 【引导】进1-2引导 | D127: =COUNTIF(UnlockConfig!B:B,解锁功能查询!A127) -> 1
A128: 516 | B128: 【引导】多波怪战斗引导 | D128: =COUNTIF(UnlockConfig!B:B,解锁功能查询!A128) -> 1
A129: 517 | B129: 【引导】分解装备 | D129: =COUNTIF(UnlockConfig!B:B,解锁功能查询!A129) -> 1
A131: 518 | B131: 主线中的连续战斗按钮解锁 | D131: =COUNTIF(UnlockConfig!B:B,解锁功能查询!A131) -> 1
A132: 519 | B132: 累充奖励 | D132: =COUNTIF(UnlockConfig!B:B,解锁功能查询!A132) -> 1
A133: 520 | B133: 主线地图探索引导 | D133: =COUNTIF(UnlockConfig!B:B,解锁功能查询!A133) -> 1
A134: 521 | B134: 穿装备引导 | D134: =COUNTIF(UnlockConfig!B:B,解锁功能查询!A134) -> 1
A135: 522 | B135: 编队引导 | D135: =COUNTIF(UnlockConfig!B:B,解锁功能查询!A135) -> 1
A136: 523 | B136: 主线箱子引导 | D136: =COUNTIF(UnlockConfig!B:B,解锁功能查询!A136) -> 1
A137: 524 | B137: 特殊关卡引导 | D137: =COUNTIF(UnlockConfig!B:B,解锁功能查询!A137) -> 1
A138: 525 | B138: 探索地图功能入口 | D138: =COUNTIF(UnlockConfig!B:B,解锁功能查询!A138) -> 1
A139: 526 | B139: 使用背包道具引导
A141: 527 | B141: 【引导】英雄和队伍评分入口 | D141: =COUNTIF(UnlockConfig!B:B,解锁功能查询!A141) -> 1
A143: 601 | B143: 残响强化等级上限解锁 | C143: 最高可强化到多少
A144: 602 | B144: 解锁活动activity对应ID的入口 | C144: activityID | D144: =COUNTIF(UnlockConfig!B:B,解锁功能查询!A144) -> 3
A146: 603 | B146: 防具一键升级 | D146: =COUNTIF(UnlockConfig!B:B,解锁功能查询!A146) -> 1
A147: 604 | B147: 残响商店
A148: 605 | B148: 武器商店

Sheet UI的序列号查询
A1: 序列号 | B1: 代表界面
A2: =IF([2]跳转类型!$A6="","",[2]跳转类型!$A6) -> 1 | B2: =IF(A2="","待定义",VLOOKUP(A2,[2]跳转类型!$A:$B,2,FALSE)) -> 冒险关卡第1章
A3: =IF([2]跳转类型!$A7="","",[2]跳转类型!$A7) -> 2 | B3: =IF(A3="","待定义",VLOOKUP(A3,[2]跳转类型!$A:$B,2,FALSE)) -> 冒险关卡第2章
A4: =IF([2]跳转类型!$A8="","",[2]跳转类型!$A8) -> 3 | B4: =IF(A4="","待定义",VLOOKUP(A4,[2]跳转类型!$A:$B,2,FALSE)) -> 冒险关卡第3章
A5: =IF([2]跳转类型!$A9="","",[2]跳转类型!$A9) -> 4 | B5: =IF(A5="","待定义",VLOOKUP(A5,[2]跳转类型!$A:$B,2,FALSE)) -> 冒险关卡第4章
A6: =IF([2]跳转类型!$A10="","",[2]跳转类型!$A10) -> 5 | B6: =IF(A6="","待定义",VLOOKUP(A6,[2]跳转类型!$A:$B,2,FALSE)) -> 冒险关卡第5章
A7: =IF([2]跳转类型!$A11="","",[2]跳转类型!$A11) -> 6 | B7: =IF(A7="","待定义",VLOOKUP(A7,[2]跳转类型!$A:$B,2,FALSE)) -> 冒险关卡第6章
A8: =IF([2]跳转类型!$A12="","",[2]跳转类型!$A12) -> 7 | B8: =IF(A8="","待定义",VLOOKUP(A8,[2]跳转类型!$A:$B,2,FALSE)) -> 冒险关卡第7章
A9: =IF([2]跳转类型!$A13="","",[2]跳转类型!$A13) -> 8 | B9: =IF(A9="","待定义",VLOOKUP(A9,[2]跳转类型!$A:$B,2,FALSE)) -> 冒险关卡第8章
A10: =IF([2]跳转类型!$A14="","",[2]跳转类型!$A14) -> 9 | B10: =IF(A10="","待定义",VLOOKUP(A10,[2]跳转类型!$A:$B,2,FALSE)) -> 冒险关卡第9章
A11: =IF([2]跳转类型!$A15="","",[2]跳转类型!$A15) -> 10 | B11: =IF(A11="","待定义",VLOOKUP(A11,[2]跳转类型!$A:$B,2,FALSE)) -> 冒险关卡第10章
A12: =IF([2]跳转类型!$A16="","",[2]跳转类型!$A16) -> 11 | B12: =IF(A12="","待定义",VLOOKUP(A12,[2]跳转类型!$A:$B,2,FALSE)) -> 冒险关卡第11章
A13: =IF([2]跳转类型!$A17="","",[2]跳转类型!$A17) -> 12 | B13: =IF(A13="","待定义",VLOOKUP(A13,[2]跳转类型!$A:$B,2,FALSE)) -> 冒险关卡第12章
A14: =IF([2]跳转类型!$A18="","",[2]跳转类型!$A18) -> 30 | B14: =IF(A14="","待定义",VLOOKUP(A14,[2]跳转类型!$A:$B,2,FALSE)) -> 冒险关卡当前进度章节
A15: =IF([2]跳转类型!$A19="","",[2]跳转类型!$A19) -> 35 | B15: =IF(A15="","待定义",VLOOKUP(A15,[2]跳转类型!$A:$B,2,FALSE)) -> 藏宝图大厅
A16: =IF([2]跳转类型!$A20="","",[2]跳转类型!$A20) -> 36 | B16: =IF(A16="","待定义",VLOOKUP(A16,[2]跳转类型!$A:$B,2,FALSE)) -> 模拟训练
A17: =IF([2]跳转类型!$A21="","",[2]跳转类型!$A21) -> 37 | B17: =IF(A17="","待定义",VLOOKUP(A17,[2]跳转类型!$A:$B,2,FALSE)) -> 共斗玩法
A18: =IF([2]跳转类型!$A22="","",[2]跳转类型!$A22) -> 38 | B18: =IF(A18="","待定义",VLOOKUP(A18,[2]跳转类型!$A:$B,2,FALSE)) -> 商店
A19: =IF([2]跳转类型!$A23="","",[2]跳转类型!$A23) -> 39 | B19: =IF(A19="","待定义",VLOOKUP(A19,[2]跳转类型!$A:$B,2,FALSE)) -> 好友
A20: =IF([2]跳转类型!$A24="","",[2]跳转类型!$A24) -> 40 | B20: =IF(A20="","待定义",VLOOKUP(A20,[2]跳转类型!$A:$B,2,FALSE)) -> 公会
A21: =IF([2]跳转类型!$A25="","",[2]跳转类型!$A25) -> 41 | B21: =IF(A21="","待定义",VLOOKUP(A21,[2]跳转类型!$A:$B,2,FALSE)) -> 悬赏栏
A22: =IF([2]跳转类型!$A26="","",[2]跳转类型!$A26) -> 42 | B22: =IF(A22="","待定义",VLOOKUP(A22,[2]跳转类型!$A:$B,2,FALSE)) -> 铁匠铺
A23: =IF([2]跳转类型!$A27="","",[2]跳转类型!$A27) -> 43 | B23: =IF(A23="","待定义",VLOOKUP(A23,[2]跳转类型!$A:$B,2,FALSE)) -> 英雄招募
A24: =IF([2]跳转类型!$A28="","",[2]跳转类型!$A28) -> 44 | B24: =IF(A24="","待定义",VLOOKUP(A24,[2]跳转类型!$A:$B,2,FALSE)) -> 英雄选择界面
A25: =IF([2]跳转类型!$A29="","",[2]跳转类型!$A29) -> 45 | B25: =IF(A25="","待定义",VLOOKUP(A25,[2]跳转类型!$A:$B,2,FALSE)) -> 成就
A26: =IF([2]跳转类型!$A30="","",[2]跳转类型!$A30) -> 46 | B26: =IF(A26="","待定义",VLOOKUP(A26,[2]跳转类型!$A:$B,2,FALSE)) -> 图鉴
A27: =IF([2]跳转类型!$A31="","",[2]跳转类型!$A31) -> 47 | B27: =IF(A27="","待定义",VLOOKUP(A27,[2]跳转类型!$A:$B,2,FALSE)) -> 邮箱
A28: =IF([2]跳转类型!$A32="","",[2]跳转类型!$A32) -> 48 | B28: =IF(A28="","待定义",VLOOKUP(A28,[2]跳转类型!$A:$B,2,FALSE)) -> 背包界面
A29: =IF([2]跳转类型!$A33="","",[2]跳转类型!$A33) -> 49 | B29: =IF(A29="","待定义",VLOOKUP(A29,[2]跳转类型!$A:$B,2,FALSE)) -> 日常任务界面
A30: =IF([2]跳转类型!$A34="","",[2]跳转类型!$A34) -> 50 | B30: =IF(A30="","待定义",VLOOKUP(A30,[2]跳转类型!$A:$B,2,FALSE)) -> 商店-小镇杂货页签
A31: =IF([2]跳转类型!$A35="","",[2]跳转类型!$A35) -> 51 | B31: =IF(A31="","待定义",VLOOKUP(A31,[2]跳转类型!$A:$B,2,FALSE)) -> 试炼之塔-流明试炼
A32: =IF([2]跳转类型!$A36="","",[2]跳转类型!$A36) -> 52 | B32: =IF(A32="","待定义",VLOOKUP(A32,[2]跳转类型!$A:$B,2,FALSE)) -> 试炼之塔-时光试炼
A33: =IF([2]跳转类型!$A37="","",[2]跳转类型!$A37) -> 53 | B33: =IF(A33="","待定义",VLOOKUP(A33,[2]跳转类型!$A:$B,2,FALSE)) -> 试炼之塔-轮回试炼
A34: =IF([2]跳转类型!$A38="","",[2]跳转类型!$A38) -> 54 | B34: =IF(A34="","待定义",VLOOKUP(A34,[2]跳转类型!$A:$B,2,FALSE)) -> 个人飞艇界面
A35: =IF([2]跳转类型!$A39="","",[2]跳转类型!$A39) -> 60 | B35: =IF(A35="","待定义",VLOOKUP(A35,[2]跳转类型!$A:$B,2,FALSE)) -> 物资枢纽主界面
A36: =IF([2]跳转类型!$A40="","",[2]跳转类型!$A40) -> 61 | B36: =IF(A36="","待定义",VLOOKUP(A36,[2]跳转类型!$A:$B,2,FALSE)) -> 物资枢纽-闹鬼金矿
A37: =IF([2]跳转类型!$A41="","",[2]跳转类型!$A41) -> 62 | B37: =IF(A37="","待定义",VLOOKUP(A37,[2]跳转类型!$A:$B,2,FALSE)) -> 物资枢纽-冒险者墓地
A38: =IF([2]跳转类型!$A42="","",[2]跳转类型!$A42) -> 63 | B38: =IF(A38="","待定义",VLOOKUP(A38,[2]跳转类型!$A:$B,2,FALSE)) -> 物资枢纽-机械废墟·红-进攻型遗物
A39: =IF([2]跳转类型!$A43="","",[2]跳转类型!$A43) -> 64 | B39: =IF(A39="","待定义",VLOOKUP(A39,[2]跳转类型!$A:$B,2,FALSE)) -> 物资枢纽-机械废墟·蓝-防御型遗物
A40: =IF([2]跳转类型!$A44="","",[2]跳转类型!$A44) -> 65 | B40: =IF(A40="","待定义",VLOOKUP(A40,[2]跳转类型!$A:$B,2,FALSE)) -> 物资枢纽-机械废墟·绿-辅助型遗物
A41: =IF([2]跳转类型!$A45="","",[2]跳转类型!$A45) -> 67 | B41: =IF(A41="","待定义",VLOOKUP(A41,[2]跳转类型!$A:$B,2,FALSE)) -> 物资枢纽-深渊猎场
A42: =IF([2]跳转类型!$A46="","",[2]跳转类型!$A46) ->  | B42: =IF(A42="","待定义",VLOOKUP(A42,[2]跳转类型!$A:$B,2,FALSE)) -> 待定义
A43: =IF([2]跳转类型!$A47="","",[2]跳转类型!$A47) ->  | B43: =IF(A43="","待定义",VLOOKUP(A43,[2]跳转类型!$A:$B,2,FALSE)) -> 待定义
A44: =IF([2]跳转类型!$A48="","",[2]跳转类型!$A48) ->  | B44: =IF(A44="","待定义",VLOOKUP(A44,[2]跳转类型!$A:$B,2,FALSE)) -> 待定义
A45: =IF([2]跳转类型!$A49="","",[2]跳转类型!$A49) ->  | B45: =IF(A45="","待定义",VLOOKUP(A45,[2]跳转类型!$A:$B,2,FALSE)) -> 待定义
A46: =IF([2]跳转类型!$A50="","",[2]跳转类型!$A50) ->  | B46: =IF(A46="","待定义",VLOOKUP(A46,[2]跳转类型!$A:$B,2,FALSE)) -> 待定义
A47: =IF([2]跳转类型!$A51="","",[2]跳转类型!$A51) ->  | B47: =IF(A47="","待定义",VLOOKUP(A47,[2]跳转类型!$A:$B,2,FALSE)) -> 待定义
A48: =IF([2]跳转类型!$A52="","",[2]跳转类型!$A52) ->  | B48: =IF(A48="","待定义",VLOOKUP(A48,[2]跳转类型!$A:$B,2,FALSE)) -> 待定义
A49: =IF([2]跳转类型!$A53="","",[2]跳转类型!$A53) ->  | B49: =IF(A49="","待定义",VLOOKUP(A49,[2]跳转类型!$A:$B,2,FALSE)) -> 待定义
A50: =IF([2]跳转类型!$A54="","",[2]跳转类型!$A54) ->  | B50: =IF(A50="","待定义",VLOOKUP(A50,[2]跳转类型!$A:$B,2,FALSE)) -> 待定义
A51: =IF([2]跳转类型!$A55="","",[2]跳转类型!$A55) ->  | B51: =IF(A51="","待定义",VLOOKUP(A51,[2]跳转类型!$A:$B,2,FALSE)) -> 待定义
A52: =IF([2]跳转类型!$A56="","",[2]跳转类型!$A56) ->  | B52: =IF(A52="","待定义",VLOOKUP(A52,[2]跳转类型!$A:$B,2,FALSE)) -> 待定义
A53: =IF([2]跳转类型!$A57="","",[2]跳转类型!$A57) ->  | B53: =IF(A53="","待定义",VLOOKUP(A53,[2]跳转类型!$A:$B,2,FALSE)) -> 待定义
A54: =IF([2]跳转类型!$A58="","",[2]跳转类型!$A58) ->  | B54: =IF(A54="","待定义",VLOOKUP(A54,[2]跳转类型!$A:$B,2,FALSE)) -> 待定义
A55: =IF([2]跳转类型!$A59="","",[2]跳转类型!$A59) ->  | B55: =IF(A55="","待定义",VLOOKUP(A55,[2]跳转类型!$A:$B,2,FALSE)) -> 待定义
A56: =IF([2]跳转类型!$A60="","",[2]跳转类型!$A60) ->  | B56: =IF(A56="","待定义",VLOOKUP(A56,[2]跳转类型!$A:$B,2,FALSE)) -> 待定义
A57: =IF([2]跳转类型!$A61="","",[2]跳转类型!$A61) ->  | B57: =IF(A57="","待定义",VLOOKUP(A57,[2]跳转类型!$A:$B,2,FALSE)) -> 待定义
A58: =IF([2]跳转类型!$A62="","",[2]跳转类型!$A62) ->  | B58: =IF(A58="","待定义",VLOOKUP(A58,[2]跳转类型!$A:$B,2,FALSE)) -> 待定义
A59: =IF([2]跳转类型!$A63="","",[2]跳转类型!$A63) ->  | B59: =IF(A59="","待定义",VLOOKUP(A59,[2]跳转类型!$A:$B,2,FALSE)) -> 待定义
A60: =IF([2]跳转类型!$A64="","",[2]跳转类型!$A64) ->  | B60: =IF(A60="","待定义",VLOOKUP(A60,[2]跳转类型!$A:$B,2,FALSE)) -> 待定义
A61: =IF([2]跳转类型!$A65="","",[2]跳转类型!$A65) ->  | B61: =IF(A61="","待定义",VLOOKUP(A61,[2]跳转类型!$A:$B,2,FALSE)) -> 待定义
A62: =IF([2]跳转类型!$A66="","",[2]跳转类型!$A66) ->  | B62: =IF(A62="","待定义",VLOOKUP(A62,[2]跳转类型!$A:$B,2,FALSE)) -> 待定义
A63: =IF([2]跳转类型!$A67="","",[2]跳转类型!$A67) ->  | B63: =IF(A63="","待定义",VLOOKUP(A63,[2]跳转类型!$A:$B,2,FALSE)) -> 待定义
A64: =IF([2]跳转类型!$A68="","",[2]跳转类型!$A68) ->  | B64: =IF(A64="","待定义",VLOOKUP(A64,[2]跳转类型!$A:$B,2,FALSE)) -> 待定义
A65: =IF([2]跳转类型!$A69="","",[2]跳转类型!$A69) ->  | B65: =IF(A65="","待定义",VLOOKUP(A65,[2]跳转类型!$A:$B,2,FALSE)) -> 待定义
A66: =IF([2]跳转类型!$A70="","",[2]跳转类型!$A70) ->  | B66: =IF(A66="","待定义",VLOOKUP(A66,[2]跳转类型!$A:$B,2,FALSE)) -> 待定义
A67: =IF([2]跳转类型!$A71="","",[2]跳转类型!$A71) ->  | B67: =IF(A67="","待定义",VLOOKUP(A67,[2]跳转类型!$A:$B,2,FALSE)) -> 待定义
A68: =IF([2]跳转类型!$A72="","",[2]跳转类型!$A72) ->  | B68: =IF(A68="","待定义",VLOOKUP(A68,[2]跳转类型!$A:$B,2,FALSE)) -> 待定义
A69: =IF([2]跳转类型!$A73="","",[2]跳转类型!$A73) ->  | B69: =IF(A69="","待定义",VLOOKUP(A69,[2]跳转类型!$A:$B,2,FALSE)) -> 待定义
A70: =IF([2]跳转类型!$A74="","",[2]跳转类型!$A74) ->  | B70: =IF(A70="","待定义",VLOOKUP(A70,[2]跳转类型!$A:$B,2,FALSE)) -> 待定义
A71: =IF([2]跳转类型!$A75="","",[2]跳转类型!$A75) ->  | B71: =IF(A71="","待定义",VLOOKUP(A71,[2]跳转类型!$A:$B,2,FALSE)) -> 待定义
A72: =IF([2]跳转类型!$A76="","",[2]跳转类型!$A76) ->  | B72: =IF(A72="","待定义",VLOOKUP(A72,[2]跳转类型!$A:$B,2,FALSE)) -> 待定义
A73: =IF([2]跳转类型!$A77="","",[2]跳转类型!$A77) ->  | B73: =IF(A73="","待定义",VLOOKUP(A73,[2]跳转类型!$A:$B,2,FALSE)) -> 待定义
A74: =IF([2]跳转类型!$A78="","",[2]跳转类型!$A78) ->  | B74: =IF(A74="","待定义",VLOOKUP(A74,[2]跳转类型!$A:$B,2,FALSE)) -> 待定义
A75: =IF([2]跳转类型!$A79="","",[2]跳转类型!$A79) ->  | B75: =IF(A75="","待定义",VLOOKUP(A75,[2]跳转类型!$A:$B,2,FALSE)) -> 待定义
A76: =IF([2]跳转类型!$A80="","",[2]跳转类型!$A80) ->  | B76: =IF(A76="","待定义",VLOOKUP(A76,[2]跳转类型!$A:$B,2,FALSE)) -> 待定义
A77: =IF([2]跳转类型!$A81="","",[2]跳转类型!$A81) ->  | B77: =IF(A77="","待定义",VLOOKUP(A77,[2]跳转类型!$A:$B,2,FALSE)) -> 待定义
A78: =IF([2]跳转类型!$A82="","",[2]跳转类型!$A82) ->  | B78: =IF(A78="","待定义",VLOOKUP(A78,[2]跳转类型!$A:$B,2,FALSE)) -> 待定义
A79: =IF([2]跳转类型!$A83="","",[2]跳转类型!$A83) ->  | B79: =IF(A79="","待定义",VLOOKUP(A79,[2]跳转类型!$A:$B,2,FALSE)) -> 待定义
A80: =IF([2]跳转类型!$A84="","",[2]跳转类型!$A84) ->  | B80: =IF(A80="","待定义",VLOOKUP(A80,[2]跳转类型!$A:$B,2,FALSE)) -> 待定义
A81: =IF([2]跳转类型!$A85="","",[2]跳转类型!$A85) ->  | B81: =IF(A81="","待定义",VLOOKUP(A81,[2]跳转类型!$A:$B,2,FALSE)) -> 待定义
A82: =IF([2]跳转类型!$A86="","",[2]跳转类型!$A86) ->  | B82: =IF(A82="","待定义",VLOOKUP(A82,[2]跳转类型!$A:$B,2,FALSE)) -> 待定义
A83: =IF([2]跳转类型!$A87="","",[2]跳转类型!$A87) ->  | B83: =IF(A83="","待定义",VLOOKUP(A83,[2]跳转类型!$A:$B,2,FALSE)) -> 待定义
A84: =IF([2]跳转类型!$A88="","",[2]跳转类型!$A88) ->  | B84: =IF(A84="","待定义",VLOOKUP(A84,[2]跳转类型!$A:$B,2,FALSE)) -> 待定义
A85: =IF([2]跳转类型!$A89="","",[2]跳转类型!$A89) ->  | B85: =IF(A85="","待定义",VLOOKUP(A85,[2]跳转类型!$A:$B,2,FALSE)) -> 待定义
A86: =IF([2]跳转类型!$A90="","",[2]跳转类型!$A90) ->  | B86: =IF(A86="","待定义",VLOOKUP(A86,[2]跳转类型!$A:$B,2,FALSE)) -> 待定义
A87: =IF([2]跳转类型!$A91="","",[2]跳转类型!$A91) ->  | B87: =IF(A87="","待定义",VLOOKUP(A87,[2]跳转类型!$A:$B,2,FALSE)) -> 待定义
A88: =IF([2]跳转类型!$A92="","",[2]跳转类型!$A92) ->  | B88: =IF(A88="","待定义",VLOOKUP(A88,[2]跳转类型!$A:$B,2,FALSE)) -> 待定义
A89: =IF([2]跳转类型!$A93="","",[2]跳转类型!$A93) ->  | B89: =IF(A89="","待定义",VLOOKUP(A89,[2]跳转类型!$A:$B,2,FALSE)) -> 待定义
A90: =IF([2]跳转类型!$A94="","",[2]跳转类型!$A94) ->  | B90: =IF(A90="","待定义",VLOOKUP(A90,[2]跳转类型!$A:$B,2,FALSE)) -> 待定义
A91: =IF([2]跳转类型!$A95="","",[2]跳转类型!$A95) ->  | B91: =IF(A91="","待定义",VLOOKUP(A91,[2]跳转类型!$A:$B,2,FALSE)) -> 待定义
A92: =IF([2]跳转类型!$A96="","",[2]跳转类型!$A96) ->  | B92: =IF(A92="","待定义",VLOOKUP(A92,[2]跳转类型!$A:$B,2,FALSE)) -> 待定义
A93: =IF([2]跳转类型!$A97="","",[2]跳转类型!$A97) ->  | B93: =IF(A93="","待定义",VLOOKUP(A93,[2]跳转类型!$A:$B,2,FALSE)) -> 待定义
A94: =IF([2]跳转类型!$A98="","",[2]跳转类型!$A98) ->  | B94: =IF(A94="","待定义",VLOOKUP(A94,[2]跳转类型!$A:$B,2,FALSE)) -> 待定义
A95: =IF([2]跳转类型!$A99="","",[2]跳转类型!$A99) ->  | B95: =IF(A95="","待定义",VLOOKUP(A95,[2]跳转类型!$A:$B,2,FALSE)) -> 待定义
A96: =IF([2]跳转类型!$A100="","",[2]跳转类型!$A100) ->  | B96: =IF(A96="","待定义",VLOOKUP(A96,[2]跳转类型!$A:$B,2,FALSE)) -> 待定义
A97: =IF([2]跳转类型!$A101="","",[2]跳转类型!$A101) ->  | B97: =IF(A97="","待定义",VLOOKUP(A97,[2]跳转类型!$A:$B,2,FALSE)) -> 待定义
A98: =IF([2]跳转类型!$A102="","",[2]跳转类型!$A102) ->  | B98: =IF(A98="","待定义",VLOOKUP(A98,[2]跳转类型!$A:$B,2,FALSE)) -> 待定义
A99: =IF([2]跳转类型!$A103="","",[2]跳转类型!$A103) ->  | B99: =IF(A99="","待定义",VLOOKUP(A99,[2]跳转类型!$A:$B,2,FALSE)) -> 待定义
A100: =IF([2]跳转类型!$A104="","",[2]跳转类型!$A104) ->  | B100: =IF(A100="","待定义",VLOOKUP(A100,[2]跳转类型!$A:$B,2,FALSE)) -> 待定义
